Workbook

Sheet Revisions
A1: Revision Date | B1: Issues Addressed
A2: 2021-04-02 | B2: Initial posting to web

Sheet Instructions
A1: Copy and paste counts into yellow cells for each of the 3 tabs (Cars & Peds, Single Units, Heavy Vehicles) making sure times, directions, and lanes match.

Sheet Cars & Peds
A1: File Name: | C1: E:\2016 DATA\TURNING MOVEMENTS\TM#202 M-24@ TURRILL LAPEER\TM_160202_353490_10-12-2016.ppd
A2: Start Date: | C2: 10/12/2016
A3: Start Time: | C3: 7:00:00 AM
A4: Site Code: | C4: 160202
A5: Major Road: | C5: M-24 (LAPEER RD)
A6: Minor Road: | C6: TURRILL RD
A7: City/Township: | C7: LAPEER TWP
A8: County: | C8: LAPEER
B9: M-24/LAPEER RD | F9: TURRILL RD | J9: M-24/LAPEER RD | N9: TURRILL RD
B10: Northbound | F10: Eastbound | J10: Southbound | N10: Westbound
A11: Start Time | B11: Right | C11: Thru | D11: Left | E11: Peds | F11: Right | G11: Thru | H11: Left | I11: Peds | J11: Right | K11: Thru | L11: Left | M11: Peds | N11: Right | O11: Thru | P11: Left | Q11: Peds
A12: 07:00 AM | B12: 11 | C12: 18 | D12: 25 | E12: 0 | F12: 1 | G12: 56 | H12: 7 | I12: 0 | J12: 60 | K12: 33 | L12: 7 | M12: 0 | N12: 1 | O12: 195 | P12: 26 | Q12: 0
A13: 07:15 AM | B13: 13 | C13: 18 | D13: 19 | E13: 0 | F13: 2 | G13: 63 | H13: 6 | I13: 0 | J13: 72 | K13: 46 | L13: 14 | M13: 0 | N13: 1 | O13: 217 | P13: 32 | Q13: 0
A14: 07:30 AM | B14: 17 | C14: 18 | D14: 22 | E14: 0 | F14: 5 | G14: 73 | H14: 10 | I14: 0 | J14: 49 | K14: 64 | L14: 10 | M14: 0 | N14: 0 | O14: 206 | P14: 30 | Q14: 0
A15: 07:45 AM | B15: 16 | C15: 24 | D15: 28 | E15: 0 | F15: 3 | G15: 61 | H15: 20 | I15: 0 | J15: 38 | K15: 67 | L15: 11 | M15: 0 | N15: 2 | O15: 145 | P15: 43 | Q15: 0
A16: 08:00 AM | B16: 32 | C16: 30 | D16: 32 | E16: 0 | F16: 5 | G16: 73 | H16: 6 | I16: 0 | J16: 38 | K16: 37 | L16: 3 | M16: 0 | N16: 2 | O16: 137 | P16: 28 | Q16: 0
A17: 08:15 AM | B17: 17 | C17: 16 | D17: 30 | E17: 0 | F17: 5 | G17: 85 | H17: 15 | I17: 0 | J17: 32 | K17: 35 | L17: 13 | M17: 0 | N17: 0 | O17: 135 | P17: 15 | Q17: 0
A18: 08:30 AM | B18: 9 | C18: 16 | D18: 13 | E18: 0 | F18: 3 | G18: 88 | H18: 18 | I18: 0 | J18: 36 | K18: 17 | L18: 11 | M18: 0 | N18: 1 | O18: 148 | P18: 23 | Q18: 0
A19: 08:45 AM | B19: 13 | C19: 19 | D19: 18 | E19: 0 | F19: 2 | G19: 80 | H19: 15 | I19: 0 | J19: 39 | K19: 20 | L19: 5 | M19: 0 | N19: 1 | O19: 113 | P19: 12 | Q19: 0
A20: 09:00 AM | B20: 0 | C20: 0 | D20: 0 | E20: 0 | F20: 0 | G20: 0 | H20: 0 | I20: 0 | J20: 0 | K20: 0 | L20: 0 | M20: 0 | N20: 0 | O20: 0 | P20: 0 | Q20: 0
A21: 09:15 AM | B21: 0 | C21: 0 | D21: 0 | E21: 0 | F21: 0 | G21: 0 | H21: 0 | I21: 0 | J21: 0 | K21: 0 | L21: 0 | M21: 0 | N21: 0 | O21: 0 | P21: 0 | Q21: 0
A22: 09:30 AM | B22: 0 | C22: 0 | D22: 0 | E22: 0 | F22: 0 | G22: 0 | H22: 0 | I22: 0 | J22: 0 | K22: 0 | L22: 0 | M22: 0 | N22: 0 | O22: 0 | P22: 0 | Q22: 0
A23: 09:45 AM | B23: 0 | C23: 0 | D23: 0 | E23: 0 | F23: 0 | G23: 0 | H23: 0 | I23: 0 | J23: 0 | K23: 0 | L23: 0 | M23: 0 | N23: 0 | O23: 0 | P23: 0 | Q23: 0
A24: 10:00 AM | B24: 0 | C24: 0 | D24: 0 | E24: 0 | F24: 0 | G24: 0 | H24: 0 | I24: 0 | J24: 0 | K24: 0 | L24: 0 | M24: 0 | N24: 0 | O24: 0 | P24: 0 | Q24: 0
A25: 10:15 AM | B25: 0 | C25: 0 | D25: 0 | E25: 0 | F25: 0 | G25: 0 | H25: 0 | I25: 0 | J25: 0 | K25: 0 | L25: 0 | M25: 0 | N25: 0 | O25: 0 | P25: 0 | Q25: 0
A26: 10:30 AM | B26: 0 | C26: 0 | D26: 0 | E26: 0 | F26: 0 | G26: 0 | H26: 0 | I26: 0 | J26: 0 | K26: 0 | L26: 0 | M26: 0 | N26: 0 | O26: 0 | P26: 0 | Q26: 0
A27: 10:45 AM | B27: 0 | C27: 0 | D27: 0 | E27: 0 | F27: 0 | G27: 0 | H27: 0 | I27: 0 | J27: 0 | K27: 0 | L27: 0 | M27: 0 | N27: 0 | O27: 0 | P27: 0 | Q27: 0
A28: 11:00 AM | B28: 21 | C28: 13 | D28: 20 | E28: 0 | F28: 7 | G28: 79 | H28: 19 | I28: 0 | J28: 12 | K28: 21 | L28: 6 | M28: 0 | N28: 3 | O28: 111 | P28: 15 | Q28: 0
A29: 11:15 AM | B29: 21 | C29: 9 | D29: 17 | E29: 0 | F29: 3 | G29: 87 | H29: 21 | I29: 0 | J29: 27 | K29: 21 | L29: 4 | M29: 0 | N29: 1 | O29: 112 | P29: 15 | Q29: 0
A30: 11:30 AM | B30: 25 | C30: 20 | D30: 21 | E30: 0 | F30: 4 | G30: 98 | H30: 31 | I30: 0 | J30: 28 | K30: 14 | L30: 6 | M30: 0 | N30: 2 | O30: 120 | P30: 21 | Q30: 0
A31: 11:45 AM | B31: 11 | C31: 19 | D31: 26 | E31: 0 | F31: 4 | G31: 88 | H31: 18 | I31: 0 | J31: 27 | K31: 17 | L31: 8 | M31: 0 | N31: 3 | O31: 99 | P31: 10 | Q31: 0
A32: 12:00 PM | B32: 23 | C32: 12 | D32: 17 | E32: 0 | F32: 5 | G32: 109 | H32: 22 | I32: 0 | J32: 32 | K32: 17 | L32: 9 | M32: 0 | N32: 4 | O32: 127 | P32: 21 | Q32: 0
A33: 12:15 PM | B33: 16 | C33: 15 | D33: 20 | E33: 0 | F33: 6 | G33: 121 | H33: 20 | I33: 0 | J33: 30 | K33: 20 | L33: 4 | M33: 0 | N33: 3 | O33: 123 | P33: 17 | Q33: 0
A34: 12:30 PM | B34: 19 | C34: 18 | D34: 18 | E34: 0 | F34: 4 | G34: 105 | H34: 23 | I34: 0 | J34: 28 | K34: 21 | L34: 6 | M34: 0 | N34: 3 | O34: 140 | P34: 20 | Q34: 0
A35: 12:45 PM | B35: 17 | C35: 18 | D35: 22 | E35: 0 | F35: 14 | G35: 108 | H35: 21 | I35: 0 | J35: 29 | K35: 17 | L35: 1 | M35: 0 | N35: 2 | O35: 88 | P35: 21 | Q35: 0
A36: 01:00 PM | B36: 1 | C36: 0 | D36: 0 | E36: 0 | F36: 0 | G36: 0 | H36: 0 | I36: 0 | J36: 0 | K36: 0 | L36: 0 | M36: 0 | N36: 0 | O36: 0 | P36: 0 | Q36: 0
A37: 01:15 PM | B37: 0 | C37: 0 | D37: 0 | E37: 0 | F37: 0 | G37: 0 | H37: 0 | I37: 0 | J37: 0 | K37: 0 | L37: 0 | M37: 0 | N37: 0 | O37: 0 | P37: 0 | Q37: 0
A38: 01:30 PM | B38: 0 | C38: 0 | D38: 0 | E38: 0 | F38: 0 | G38: 0 | H38: 0 | I38: 0 | J38: 0 | K38: 0 | L38: 0 | M38: 0 | N38: 0 | O38: 0 | P38: 0 | Q38: 0
A39: 01:45 PM | B39: 0 | C39: 0 | D39: 0 | E39: 0 | F39: 0 | G39: 0 | H39: 0 | I39: 0 | J39: 0 | K39: 0 | L39: 0 | M39: 0 | N39: 0 | O39: 0 | P39: 0 | Q39: 0
A40: 02:00 PM | B40: 6 | C40: 24 | D40: 12 | E40: 0 | F40: 3 | G40: 123 | H40: 23 | I40: 0 | J40: 35 | K40: 19 | L40: 7 | M40: 0 | N40: 3 | O40: 98 | P40: 22 | Q40: 0
A41: 02:15 PM | B41: 14 | C41: 17 | D41: 16 | E41: 0 | F41: 3 | G41: 126 | H41: 20 | I41: 0 | J41: 21 | K41: 27 | L41: 2 | M41: 0 | N41: 3 | O41: 110 | P41: 22 | Q41: 0
A42: 02:30 PM | B42: 20 | C42: 15 | D42: 13 | E42: 0 | F42: 7 | G42: 115 | H42: 25 | I42: 0 | J42: 26 | K42: 30 | L42: 11 | M42: 0 | N42: 3 | O42: 111 | P42: 24 | Q42: 0
A43: 02:45 PM | B43: 14 | C43: 15 | D43: 24 | E43: 0 | F43: 5 | G43: 134 | H43: 20 | I43: 0 | J43: 30 | K43: 26 | L43: 6 | M43: 0 | N43: 5 | O43: 117 | P43: 20 | Q43: 0
A44: 03:00 PM | B44: 20 | C44: 28 | D44: 22 | E44: 0 | F44: 5 | G44: 138 | H44: 31 | I44: 0 | J44: 20 | K44: 21 | L44: 4 | M44: 0 | N44: 1 | O44: 106 | P44: 18 | Q44: 0
A45: 03:15 PM | B45: 55 | C45: 52 | D45: 29 | E45: 0 | F45: 3 | G45: 136 | H45: 35 | I45: 0 | J45: 18 | K45: 26 | L45: 8 | M45: 0 | N45: 7 | O45: 111 | P45: 15 | Q45: 0
A46: 03:30 PM | B46: 27 | C46: 41 | D46: 25 | E46: 0 | F46: 3 | G46: 172 | H46: 46 | I46: 0 | J46: 29 | K46: 26 | L46: 8 | M46: 0 | N46: 4 | O46: 114 | P46: 18 | Q46: 0
A47: 03:45 PM | B47: 28 | C47: 34 | D47: 21 | E47: 0 | F47: 2 | G47: 178 | H47: 37 | I47: 0 | J47: 23 | K47: 30 | L47: 14 | M47: 0 | N47: 4 | O47: 112 | P47: 26 | Q47: 0
A48: 04:00 PM | B48: 18 | C48: 45 | D48: 20 | E48: 0 | F48: 1 | G48: 179 | H48: 48 | I48: 0 | J48: 30 | K48: 18 | L48: 9 | M48: 0 | N48: 5 | O48: 139 | P48: 25 | Q48: 0
A49: 04:15 PM | B49: 34 | C49: 42 | D49: 20 | E49: 0 | F49: 2 | G49: 177 | H49: 42 | I49: 0 | J49: 22 | K49: 29 | L49: 15 | M49: 0 | N49: 6 | O49: 97 | P49: 25 | Q49: 0
A50: 04:30 PM | B50: 25 | C50: 31 | D50: 26 | E50: 0 | F50: 8 | G50: 188 | H50: 56 | I50: 0 | J50: 26 | K50: 28 | L50: 11 | M50: 0 | N50: 3 | O50: 121 | P50: 21 | Q50: 0
A51: 04:45 PM | B51: 26 | C51: 50 | D51: 30 | E51: 0 | F51: 6 | G51: 170 | H51: 53 | I51: 0 | J51: 20 | K51: 23 | L51: 4 | M51: 0 | N51: 1 | O51: 131 | P51: 19 | Q51: 0
A52: 05:00 PM | B52: 29 | C52: 56 | D52: 18 | E52: 0 | F52: 10 | G52: 184 | H52: 62 | I52: 0 | J52: 22 | K52: 24 | L52: 9 | M52: 0 | N52: 3 | O52: 106 | P52: 15 | Q52: 0
A53: 05:15 PM | B53: 27 | C53: 59 | D53: 30 | E53: 0 | F53: 6 | G53: 186 | H53: 52 | I53: 0 | J53: 16 | K53: 25 | L53: 12 | M53: 0 | N53: 6 | O53: 110 | P53: 20 | Q53: 0
A54: 05:30 PM | B54: 30 | C54: 40 | D54: 34 | E54: 0 | F54: 3 | G54: 157 | H54: 58 | I54: 0 | J54: 27 | K54: 29 | L54: 11 | M54: 0 | N54: 4 | O54: 115 | P54: 20 | Q54: 0
A55: 05:45 PM | B55: 29 | C55: 45 | D55: 28 | E55: 0 | F55: 2 | G55: 175 | H55: 54 | I55: 0 | J55: 34 | K55: 21 | L55: 8 | M55: 0 | N55: 7 | O55: 103 | P55: 10 | Q55: 0

Sheet Single Units
A1: File Name: | C1: ='Cars & Peds'!C1:P1 -> E:\2016 DATA\TURNING MOVEMENTS\TM#202 M-24@ TURRILL LAPEER\TM_160202_353490_10-12-2016.ppd
A2: Start Date: | C2: ='Cars & Peds'!C2:P2 -> 10/12/2016
A3: Start Time: | C3: ='Cars & Peds'!C3:P3 -> 7:00:00 AM
A4: Site Code: | C4: ='Cars & Peds'!C4:P4 -> 160202
A5: Major Road: | C5: ='Cars & Peds'!C5:P5 -> M-24 (LAPEER RD)
A6: Minor Road: | C6: ='Cars & Peds'!C6:P6 -> TURRILL RD
A7: City/Township: | C7: ='Cars & Peds'!C7:P7 -> LAPEER TWP
A8: County: | C8: ='Cars & Peds'!C8:P8 -> LAPEER
B9: ='Cars & Peds'!$B$9 -> M-24/LAPEER RD | E9: ='Cars & Peds'!$F$9 -> TURRILL RD | H9: ='Cars & Peds'!$J$9 -> M-24/LAPEER RD | K9: ='Cars & Peds'!$N$9 -> TURRILL RD
B10: Northbound | E10: Eastbound | H10: Southbound | K10: Westbound
A11: Start Time | B11: Right | C11: Thru | D11: Left | E11: Right | F11: Thru | G11: Left | H11: Right | I11: Thru | J11: Left | K11: Right | L11: Thru | M11: Left
A12: 07:00 AM | B12: 1 | C12: 0 | D12: 1 | E12: 0 | F12: 8 | G12: 0 | H12: 1 | I12: 0 | J12: 1 | K12: 0 | L12: 3 | M12: 0
A13: 07:15 AM | B13: 2 | C13: 1 | D13: 4 | E13: 0 | F13: 8 | G13: 0 | H13: 1 | I13: 1 | J13: 0 | K13: 0 | L13: 3 | M13: 0
A14: 07:30 AM | B14: 1 | C14: 1 | D14: 3 | E14: 0 | F14: 2 | G14: 1 | H14: 1 | I14: 1 | J14: 0 | K14: 1 | L14: 6 | M14: 0
A15: 07:45 AM | B15: 0 | C15: 0 | D15: 2 | E15: 0 | F15: 1 | G15: 2 | H15: 1 | I15: 0 | J15: 0 | K15: 0 | L15: 7 | M15: 2
A16: 08:00 AM | B16: 1 | C16: 0 | D16: 4 | E16: 2 | F16: 3 | G16: 0 | H16: 0 | I16: 0 | J16: 1 | K16: 0 | L16: 5 | M16: 1
A17: 08:15 AM | B17: 0 | C17: 0 | D17: 5 | E17: 0 | F17: 2 | G17: 1 | H17: 0 | I17: 0 | J17: 1 | K17: 1 | L17: 3 | M17: 0
A18: 08:30 AM | B18: 1 | C18: 0 | D18: 2 | E18: 0 | F18: 3 | G18: 0 | H18: 2 | I18: 0 | J18: 0 | K18: 1 | L18: 5 | M18: 0
A19: 08:45 AM | B19: 0 | C19: 0 | D19: 0 | E19: 2 | F19: 9 | G19: 0 | H19: 1 | I19: 0 | J19: 1 | K19: 0 | L19: 6 | M19: 1
A20: 09:00 AM | B20: 0 | C20: 0 | D20: 0 | E20: 0 | F20: 0 | G20: 0 | H20: 0 | I20: 0 | J20: 0 | K20: 0 | L20: 0 | M20: 0
A21: 09:15 AM | B21: 0 | C21: 0 | D21: 0 | E21: 0 | F21: 0 | G21: 0 | H21: 0 | I21: 0 | J21: 0 | K21: 0 | L21: 0 | M21: 0
A22: 09:30 AM | B22: 0 | C22: 0 | D22: 0 | E22: 0 | F22: 0 | G22: 0 | H22: 0 | I22: 0 | J22: 0 | K22: 0 | L22: 0 | M22: 0
A23: 09:45 AM | B23: 0 | C23: 0 | D23: 0 | E23: 0 | F23: 0 | G23: 0 | H23: 0 | I23: 0 | J23: 0 | K23: 0 | L23: 0 | M23: 0
A24: 10:00 AM | B24: 0 | C24: 0 | D24: 0 | E24: 0 | F24: 0 | G24: 0 | H24: 0 | I24: 0 | J24: 0 | K24: 0 | L24: 0 | M24: 0
A25: 10:15 AM | B25: 0 | C25: 0 | D25: 0 | E25: 0 | F25: 0 | G25: 0 | H25: 0 | I25: 0 | J25: 0 | K25: 0 | L25: 0 | M25: 0
A26: 10:30 AM | B26: 0 | C26: 0 | D26: 0 | E26: 0 | F26: 0 | G26: 0 | H26: 0 | I26: 0 | J26: 0 | K26: 0 | L26: 0 | M26: 0
A27: 10:45 AM | B27: 0 | C27: 0 | D27: 0 | E27: 0 | F27: 0 | G27: 0 | H27: 0 | I27: 0 | J27: 0 | K27: 0 | L27: 0 | M27: 0
A28: 11:00 AM | B28: 0 | C28: 0 | D28: 1 | E28: 0 | F28: 2 | G28: 0 | H28: 2 | I28: 0 | J28: 0 | K28: 1 | L28: 5 | M28: 1
A29: 11:15 AM | B29: 1 | C29: 0 | D29: 0 | E29: 0 | F29: 5 | G29: 2 | H29: 1 | I29: 1 | J29: 0 | K29: 0 | L29: 6 | M29: 0
A30: 11:30 AM | B30: 1 | C30: 1 | D30: 0 | E30: 0 | F30: 4 | G30: 0 | H30: 0 | I30: 0 | J30: 0 | K30: 0 | L30: 5 | M30: 0
A31: 11:45 AM | B31: 3 | C31: 1 | D31: 0 | E31: 0 | F31: 1 | G31: 0 | H31: 0 | I31: 1 | J31: 0 | K31: 0 | L31: 5 | M31: 2
A32: 12:00 PM | B32: 0 | C32: 0 | D32: 0 | E32: 0 | F32: 7 | G32: 0 | H32: 0 | I32: 0 | J32: 1 | K32: 0 | L32: 2 | M32: 0
A33: 12:15 PM | B33: 0 | C33: 0 | D33: 0 | E33: 0 | F33: 4 | G33: 0 | H33: 0 | I33: 0 | J33: 0 | K33: 0 | L33: 7 | M33: 0
A34: 12:30 PM | B34: 1 | C34: 0 | D34: 0 | E34: 0 | F34: 0 | G34: 0 | H34: 1 | I34: 0 | J34: 1 | K34: 1 | L34: 5 | M34: 0
A35: 12:45 PM | B35: 1 | C35: 0 | D35: 0 | E35: 0 | F35: 4 | G35: 3 | H35: 0 | I35: 0 | J35: 0 | K35: 0 | L35: 3 | M35: 1
A36: 01:00 PM | B36: 0 | C36: 0 | D36: 0 | E36: 0 | F36: 0 | G36: 0 | H36: 0 | I36: 0 | J36: 0 | K36: 0 | L36: 0 | M36: 0
A37: 01:15 PM | B37: 0 | C37: 0 | D37: 0 | E37: 0 | F37: 0 | G37: 0 | H37: 0 | I37: 0 | J37: 0 | K37: 0 | L37: 0 | M37: 0
A38: 01:30 PM | B38: 0 | C38: 0 | D38: 0 | E38: 0 | F38: 0 | G38: 0 | H38: 0 | I38: 0 | J38: 0 | K38: 0 | L38: 0 | M38: 0
A39: 01:45 PM | B39: 0 | C39: 0 | D39: 0 | E39: 0 | F39: 0 | G39: 0 | H39: 0 | I39: 0 | J39: 0 | K39: 0 | L39: 0 | M39: 0
A40: 02:00 PM | B40: 0 | C40: 1 | D40: 0 | E40: 0 | F40: 6 | G40: 1 | H40: 0 | I40: 1 | J40: 1 | K40: 0 | L40: 4 | M40: 1
A41: 02:15 PM | B41: 1 | C41: 0 | D41: 1 | E41: 0 | F41: 2 | G41: 1 | H41: 1 | I41: 0 | J41: 0 | K41: 0 | L41: 3 | M41: 0
A42: 02:30 PM | B42: 0 | C42: 0 | D42: 1 | E42: 0 | F42: 2 | G42: 0 | H42: 3 | I42: 0 | J42: 0 | K42: 1 | L42: 8 | M42: 1
A43: 02:45 PM | B43: 0 | C43: 1 | D43: 0 | E43: 0 | F43: 1 | G43: 0 | H43: 1 | I43: 0 | J43: 1 | K43: 0 | L43: 3 | M43: 1
A44: 03:00 PM | B44: 0 | C44: 0 | D44: 2 | E44: 1 | F44: 2 | G44: 1 | H44: 0 | I44: 0 | J44: 1 | K44: 0 | L44: 7 | M44: 1
A45: 03:15 PM | B45: 1 | C45: 0 | D45: 1 | E45: 1 | F45: 4 | G45: 0 | H45: 3 | I45: 0 | J45: 0 | K45: 0 | L45: 3 | M45: 0
A46: 03:30 PM | B46: 1 | C46: 1 | D46: 2 | E46: 2 | F46: 5 | G46: 0 | H46: 0 | I46: 0 | J46: 0 | K46: 0 | L46: 3 | M46: 0
A47: 03:45 PM | B47: 1 | C47: 0 | D47: 4 | E47: 1 | F47: 8 | G47: 0 | H47: 0 | I47: 3 | J47: 1 | K47: 1 | L47: 3 | M47: 1
A48: 04:00 PM | B48: 1 | C48: 1 | D48: 0 | E48: 1 | F48: 3 | G48: 0 | H48: 1 | I48: 0 | J48: 1 | K48: 0 | L48: 5 | M48: 0
A49: 04:15 PM | B49: 0 | C49: 0 | D49: 1 | E49: 0 | F49: 1 | G49: 0 | H49: 2 | I49: 1 | J49: 1 | K49: 0 | L49: 3 | M49: 0
A50: 04:30 PM | B50: 0 | C50: 1 | D50: 1 | E50: 0 | F50: 4 | G50: 0 | H50: 2 | I50: 0 | J50: 0 | K50: 1 | L50: 8 | M50: 1
A51: 04:45 PM | B51: 2 | C51: 0 | D51: 2 | E51: 0 | F51: 2 | G51: 0 | H51: 2 | I51: 0 | J51: 0 | K51: 0 | L51: 10 | M51: 0
A52: 05:00 PM | B52: 0 | C52: 0 | D52: 0 | E52: 0 | F52: 1 | G52: 0 | H52: 2 | I52: 0 | J52: 1 | K52: 0 | L52: 3 | M52: 1
A53: 05:15 PM | B53: 0 | C53: 0 | D53: 0 | E53: 0 | F53: 7 | G53: 0 | H53: 0 | I53: 0 | J53: 0 | K53: 0 | L53: 10 | M53: 0
A54: 05:30 PM | B54: 0 | C54: 0 | D54: 0 | E54: 0 | F54: 2 | G54: 0 | H54: 1 | I54: 0 | J54: 0 | K54: 1 | L54: 3 | M54: 1
A55: 05:45 PM | B55: 1 | C55: 0 | D55: 0 | E55: 0 | F55: 1 | G55: 0 | H55: 1 | I55: 0 | J55: 0 | K55: 0 | L55: 4 | M55: 0

Sheet Heavy Vehicles
A1: File Name: | C1: ='Cars & Peds'!C1:P1 -> E:\2016 DATA\TURNING MOVEMENTS\TM#202 M-24@ TURRILL LAPEER\TM_160202_353490_10-12-2016.ppd
A2: Start Date: | C2: ='Cars & Peds'!C2:P2 -> 10/12/2016
A3: Start Time: | C3: ='Cars & Peds'!C3:P3 -> 7:00:00 AM
A4: Site Code: | C4: ='Cars & Peds'!C4:P4 -> 160202
A5: Major Road: | C5: ='Cars & Peds'!C5:P5 -> M-24 (LAPEER RD)
A6: Minor Road: | C6: ='Cars & Peds'!C6:P6 -> TURRILL RD
A7: City/Township: | C7: ='Cars & Peds'!C7:P7 -> LAPEER TWP
A8: County: | C8: ='Cars & Peds'!C8:P8 -> LAPEER
B9: ='Cars & Peds'!$B$9 -> M-24/LAPEER RD | E9: ='Cars & Peds'!$F$9 -> TURRILL RD | H9: ='Cars & Peds'!$J$9 -> M-24/LAPEER RD | K9: ='Cars & Peds'!$N$9 -> TURRILL RD
B10: Northbound | E10: Eastbound | H10: Southbound | K10: Westbound
A11: Start Time | B11: Right | C11: Thru | D11: Left | E11: Right | F11: Thru | G11: Left | H11: Right | I11: Thru | J11: Left | K11: Right | L11: Thru | M11: Left
A12: 07:00 AM | B12: 1 | C12: 0 | D12: 0 | E12: 0 | F12: 3 | G12: 0 | H12: 1 | I12: 0 | J12: 0 | K12: 0 | L12: 0 | M12: 0
A13: 07:15 AM | B13: 2 | C13: 0 | D13: 0 | E13: 0 | F13: 5 | G13: 0 | H13: 0 | I13: 0 | J13: 0 | K13: 0 | L13: 0 | M13: 0
A14: 07:30 AM | B14: 0 | C14: 0 | D14: 1 | E14: 0 | F14: 1 | G14: 1 | H14: 0 | I14: 0 | J14: 0 | K14: 0 | L14: 1 | M14: 0
A15: 07:45 AM | B15: 0 | C15: 0 | D15: 1 | E15: 1 | F15: 2 | G15: 0 | H15: 0 | I15: 0 | J15: 0 | K15: 0 | L15: 2 | M15: 0
A16: 08:00 AM | B16: 1 | C16: 0 | D16: 0 | E16: 1 | F16: 0 | G16: 0 | H16: 0 | I16: 0 | J16: 0 | K16: 0 | L16: 2 | M16: 0
A17: 08:15 AM | B17: 0 | C17: 0 | D17: 1 | E17: 0 | F17: 5 | G17: 0 | H17: 0 | I17: 0 | J17: 0 | K17: 0 | L17: 0 | M17: 0
A18: 08:30 AM | B18: 1 | C18: 1 | D18: 0 | E18: 0 | F18: 2 | G18: 0 | H18: 1 | I18: 0 | J18: 0 | K18: 0 | L18: 2 | M18: 0
A19: 08:45 AM | B19: 0 | C19: 0 | D19: 0 | E19: 0 | F19: 0 | G19: 0 | H19: 0 | I19: 0 | J19: 0 | K19: 0 | L19: 2 | M19: 0
A20: 09:00 AM | B20: 0 | C20: 0 | D20: 0 | E20: 0 | F20: 0 | G20: 0 | H20: 0 | I20: 0 | J20: 0 | K20: 0 | L20: 0 | M20: 0
A21: 09:15 AM | B21: 0 | C21: 0 | D21: 0 | E21: 0 | F21: 0 | G21: 0 | H21: 0 | I21: 0 | J21: 0 | K21: 0 | L21: 0 | M21: 0
A22: 09:30 AM | B22: 0 | C22: 0 | D22: 0 | E22: 0 | F22: 0 | G22: 0 | H22: 0 | I22: 0 | J22: 0 | K22: 0 | L22: 0 | M22: 0
A23: 09:45 AM | B23: 0 | C23: 0 | D23: 0 | E23: 0 | F23: 0 | G23: 0 | H23: 0 | I23: 0 | J23: 0 | K23: 0 | L23: 0 | M23: 0
A24: 10:00 AM | B24: 0 | C24: 0 | D24: 0 | E24: 0 | F24: 0 | G24: 0 | H24: 0 | I24: 0 | J24: 0 | K24: 0 | L24: 0 | M24: 0
A25: 10:15 AM | B25: 0 | C25: 0 | D25: 0 | E25: 0 | F25: 0 | G25: 0 | H25: 0 | I25: 0 | J25: 0 | K25: 0 | L25: 0 | M25: 0
A26: 10:30 AM | B26: 0 | C26: 0 | D26: 0 | E26: 0 | F26: 0 | G26: 0 | H26: 0 | I26: 0 | J26: 0 | K26: 0 | L26: 0 | M26: 0
A27: 10:45 AM | B27: 0 | C27: 0 | D27: 0 | E27: 0 | F27: 0 | G27: 0 | H27: 0 | I27: 0 | J27: 0 | K27: 0 | L27: 0 | M27: 0
A28: 11:00 AM | B28: 1 | C28: 0 | D28: 0 | E28: 1 | F28: 5 | G28: 0 | H28: 0 | I28: 0 | J28: 0 | K28: 0 | L28: 0 | M28: 0
A29: 11:15 AM | B29: 0 | C29: 0 | D29: 0 | E29: 0 | F29: 1 | G29: 0 | H29: 0 | I29: 0 | J29: 0 | K29: 0 | L29: 3 | M29: 0
A30: 11:30 AM | B30: 0 | C30: 0 | D30: 0 | E30: 0 | F30: 6 | G30: 0 | H30: 0 | I30: 0 | J30: 1 | K30: 0 | L30: 2 | M30: 0
A31: 11:45 AM | B31: 0 | C31: 0 | D31: 0 | E31: 0 | F31: 4 | G31: 0 | H31: 0 | I31: 0 | J31: 0 | K31: 0 | L31: 1 | M31: 0
A32: 12:00 PM | B32: 0 | C32: 0 | D32: 2 | E32: 0 | F32: 2 | G32: 0 | H32: 0 | I32: 0 | J32: 1 | K32: 0 | L32: 2 | M32: 0
A33: 12:15 PM | B33: 0 | C33: 1 | D33: 0 | E33: 0 | F33: 4 | G33: 0 | H33: 0 | I33: 0 | J33: 0 | K33: 0 | L33: 1 | M33: 1
A34: 12:30 PM | B34: 0 | C34: 0 | D34: 0 | E34: 1 | F34: 4 | G34: 0 | H34: 0 | I34: 0 | J34: 0 | K34: 0 | L34: 1 | M34: 1
A35: 12:45 PM | B35: 0 | C35: 0 | D35: 0 | E35: 0 | F35: 1 | G35: 0 | H35: 0 | I35: 0 | J35: 0 | K35: 0 | L35: 5 | M35: 0
A36: 01:00 PM | B36: 0 | C36: 0 | D36: 0 | E36: 0 | F36: 0 | G36: 0 | H36: 1 | I36: 0 | J36: 0 | K36: 0 | L36: 0 | M36: 0
A37: 01:15 PM | B37: 0 | C37: 0 | D37: 0 | E37: 0 | F37: 0 | G37: 0 | H37: 0 | I37: 0 | J37: 0 | K37: 0 | L37: 0 | M37: 0
A38: 01:30 PM | B38: 0 | C38: 0 | D38: 0 | E38: 0 | F38: 0 | G38: 0 | H38: 0 | I38: 0 | J38: 0 | K38: 0 | L38: 0 | M38: 0
A39: 01:45 PM | B39: 0 | C39: 0 | D39: 0 | E39: 0 | F39: 0 | G39: 0 | H39: 0 | I39: 0 | J39: 0 | K39: 0 | L39: 0 | M39: 0
A40: 02:00 PM | B40: 0 | C40: 0 | D40: 1 | E40: 0 | F40: 1 | G40: 0 | H40: 1 | I40: 0 | J40: 0 | K40: 0 | L40: 5 | M40: 0
A41: 02:15 PM | B41: 0 | C41: 0 | D41: 0 | E41: 0 | F41: 3 | G41: 0 | H41: 1 | I41: 0 | J41: 0 | K41: 0 | L41: 1 | M41: 0
A42: 02:30 PM | B42: 0 | C42: 0 | D42: 0 | E42: 0 | F42: 4 | G42: 0 | H42: 0 | I42: 0 | J42: 0 | K42: 0 | L42: 0 | M42: 0
A43: 02:45 PM | B43: 0 | C43: 0 | D43: 1 | E43: 0 | F43: 2 | G43: 0 | H43: 0 | I43: 0 | J43: 0 | K43: 0 | L43: 2 | M43: 0
A44: 03:00 PM | B44: 0 | C44: 0 | D44: 0 | E44: 0 | F44: 2 | G44: 0 | H44: 0 | I44: 0 | J44: 0 | K44: 0 | L44: 5 | M44: 0
A45: 03:15 PM | B45: 0 | C45: 0 | D45: 0 | E45: 0 | F45: 1 | G45: 0 | H45: 1 | I45: 0 | J45: 0 | K45: 0 | L45: 3 | M45: 0
A46: 03:30 PM | B46: 0 | C46: 0 | D46: 0 | E46: 0 | F46: 1 | G46: 1 | H46: 1 | I46: 0 | J46: 0 | K46: 0 | L46: 2 | M46: 0
A47: 03:45 PM | B47: 0 | C47: 0 | D47: 0 | E47: 1 | F47: 3 | G47: 0 | H47: 0 | I47: 0 | J47: 0 | K47: 0 | L47: 2 | M47: 1
A48: 04:00 PM | B48: 0 | C48: 0 | D48: 0 | E48: 0 | F48: 4 | G48: 0 | H48: 1 | I48: 0 | J48: 0 | K48: 0 | L48: 3 | M48: 0
A49: 04:15 PM | B49: 0 | C49: 0 | D49: 1 | E49: 0 | F49: 0 | G49: 0 | H49: 0 | I49: 0 | J49: 0 | K49: 1 | L49: 1 | M49: 0
A50: 04:30 PM | B50: 0 | C50: 0 | D50: 0 | E50: 0 | F50: 0 | G50: 0 | H50: 0 | I50: 0 | J50: 0 | K50: 0 | L50: 0 | M50: 0
A51: 04:45 PM | B51: 0 | C51: 0 | D51: 0 | E51: 0 | F51: 0 | G51: 0 | H51: 0 | I51: 0 | J51: 0 | K51: 0 | L51: 3 | M51: 0
A52: 05:00 PM | B52: 0 | C52: 0 | D52: 0 | E52: 0 | F52: 0 | G52: 0 | H52: 0 | I52: 0 | J52: 0 | K52: 0 | L52: 1 | M52: 1
A53: 05:15 PM | B53: 0 | C53: 0 | D53: 0 | E53: 0 | F53: 0 | G53: 0 | H53: 0 | I53: 0 | J53: 0 | K53: 0 | L53: 3 | M53: 0
A54: 05:30 PM | B54: 0 | C54: 0 | D54: 0 | E54: 0 | F54: 0 | G54: 0 | H54: 0 | I54: 0 | J54: 0 | K54: 0 | L54: 2 | M54: 0
A55: 05:45 PM | B55: 0 | C55: 0 | D55: 0 | E55: 0 | F55: 0 | G55: 0 | H55: 0 | I55: 0 | J55: 0 | K55: 0 | L55: 0 | M55: 0

Sheet Calculations
A1: File Name: | C1: ='Cars & Peds'!C1:P1 -> E:\2016 DATA\TURNING MOVEMENTS\TM#202 M-24@ TURRILL LAPEER\TM_160202_353490_10-12-2016.ppd
A2: Start Date: | C2: ='Cars & Peds'!C2:P2 -> 10/12/2016
A3: Start Time: | C3: ='Cars & Peds'!C3:P3 -> 7:00:00 AM
A4: Site Code: | C4: ='Cars & Peds'!C4:P4 -> 160202
A5: Major Road: | C5: ='Cars & Peds'!C5:P5 -> M-24 (LAPEER RD)
A6: Minor Road: | C6: ='Cars & Peds'!C6:P6 -> TURRILL RD
A7: City/Township: | C7: ='Cars & Peds'!C7:P7 -> LAPEER TWP
A8: County: | C8: ='Cars & Peds'!C8:P8 -> LAPEER
B9: ='Cars & Peds'!$B$9 -> M-24/LAPEER RD | G9: ='Cars & Peds'!$F$9 -> TURRILL RD | L9: ='Cars & Peds'!$J$9 -> M-24/LAPEER RD | Q9: ='Cars & Peds'!$N$9 -> TURRILL RD | V9: NB/SB Volume | X9: EB/WB Volume | Z9: Intersection Volume | AC9: Peak Volume | AE9: Time of Day | AH9: Start Time | AI9: End Time | AJ9: =B9 -> M-24/LAPEER RD | AO9: =G9 -> TURRILL RD | AT9: =L9 -> M-24/LAPEER RD | AY9: =Q9 -> TURRILL RD | BD9: Intersection Volume | BF9: PHF
B10: Northbound | G10: Eastbound | L10: Southbound | Q10: Westbound | AJ10: Northbound | AO10: Eastbound | AT10: Southbound | AY10: Westbound
A11: Start Time | B11: Right | C11: Thru | D11: Left | E11: Peds | F11: Total | G11: Right | H11: Thru | I11: Left | J11: Peds | K11: Total | L11: Right | M11: Thru | N11: Left | O11: Peds | P11: Total | Q11: Right | R11: Thru | S11: Left | T11: Peds | U11: Total | V11: 15-Min | W11: Hourly | X11: 15-Min | Y11: Hourly | Z11: 15-Min | AA11: Hourly | AJ11: Right | AK11: Thru | AL11: Left | AM11: Peds | AN11: Total | AO11: Right | AP11: Thru | AQ11: Left | AR11: Peds | AS11: Total | AT11: Right | AU11: Thru | AV11: Left | AW11: Peds | AX11: Total | AY11: Right | AZ11: Thru | BA11: Left | BB11: Peds | BC11: Total | BF11: Intersection | BG11: NB | BH11: EB | BI11: SB | BJ11: WB
A12: 07:00 AM | B12: ='Cars & Peds'!B12+'Single Units'!B12+'Heavy Vehicles'!B12 -> 13 | C12: ='Cars & Peds'!C12+'Single Units'!C12+'Heavy Vehicles'!C12 -> 18 | D12: ='Cars & Peds'!D12+'Single Units'!D12+'Heavy Vehicles'!D12 -> 26 | E12: ='Cars & Peds'!E12 -> 0 | F12: =B12+C12+D12 -> 57 | G12: ='Cars & Peds'!F12+'Single Units'!E12+'Heavy Vehicles'!E12 -> 1 | H12: ='Cars & Peds'!G12+'Single Units'!F12+'Heavy Vehicles'!F12 -> 67 | I12: ='Cars & Peds'!H12+'Single Units'!G12+'Heavy Vehicles'!G12 -> 7 | J12: ='Cars & Peds'!I12 -> 0 | K12: =G12+H12+I12 -> 75 | L12: ='Cars & Peds'!J12+'Single Units'!H12+'Heavy Vehicles'!H12 -> 62 | M12: ='Cars & Peds'!K12+'Single Units'!I12+'Heavy Vehicles'!I12 -> 33 | N12: ='Cars & Peds'!L12+'Single Units'!J12+'Heavy Vehicles'!J12 -> 8 | O12: ='Cars & Peds'!M12 -> 0 | P12: =L12+M12+N12 -> 103 | Q12: ='Cars & Peds'!N12+'Single Units'!K12+'Heavy Vehicles'!K12 -> 1 | R12: ='Cars & Peds'!O12+'Single Units'!L12+'Heavy Vehicles'!L12 -> 198 | S12: ='Cars & Peds'!P12+'Single Units'!M12+'Heavy Vehicles'!M12 -> 26 | T12: ='Cars & Peds'!Q12 -> 0 | U12: =Q12+R12+S12 -> 225 | V12: =F12+P12 -> 160 | W12: =SUM(V9:V12) -> 160 | X12: =K12+U12 -> 300 | Y12: =SUM(X9:X12) -> 300 | Z12: =F12+K12+P12+U12 -> 460 | AA12: =SUM(Z9:Z12) -> 460 | AD12: =IF(AA12>=$AC$27,AA12,"") ->  | AE12: =IF(AD12=AA12,A12,"") ->  | AF12: =IF(AA12=AD12,AE12-0.03125,0) -> 00:00:00 | AG12: =IF(AA12=AD12,AE12+0.0104166666666666,0) -> 00:00:00 | AH12: =MAX(AF12:AF27) -> 07:00:00 | AI12: =MAX(AG12:AG27) -> 08:00:00 | AJ12: =IF($AA12>=$AC$27,SUM(B9:B12),0) -> 0 | AK12: =IF($AA12>=$AC$27,SUM(C9:C12),0) -> 0 | AL12: =IF($AA12>=$AC$27,SUM(D9:D12),0) -> 0 | AM12: =IF($AA12>=$AC$27,SUM(E9:E12),0) -> 0 | AN12: =AJ12+AK12+AL12 -> 0 | AO12: =IF($AA12>=$AC$27,SUM(G9:G12),0) -> 0 | AP12: =IF($AA12>=$AC$27,SUM(H9:H12),0) -> 0 | AQ12: =IF($AA12>=$AC$27,SUM(I9:I12),0) -> 0 | AR12: =IF($AA12>=$AC$27,SUM(J9:J12),0) -> 0 | AS12: =AO12+AP12+AQ12 -> 0 | AT12: =IF($AA12>=$AC$27,SUM(L9:L12),0) -> 0 | AU12: =IF($AA12>=$AC$27,SUM(M9:M12),0) -> 0 | AV12: =IF($AA12>=$AC$27,SUM(N9:N12),0) -> 0 | AW12: =IF($AA12>=$AC$27,SUM(O9:O12),0) -> 0 | AX12: =AT12+AU12+AV12 -> 0 | AY12: =IF($AA12>=$AC$27,SUM(Q9:Q12),0) -> 0 | AZ12: =IF($AA12>=$AC$27,SUM(R9:R12),0) -> 0 | BA12: =IF($AA12>=$AC$27,SUM(S9:S12),0) -> 0 | BB12: =IF($AA12>=$AC$27,SUM(T9:T12),0) -> 0 | BC12: =AY12+AZ12+BA12 -> 0 | BD12: =IF($AA12>=$AC$27,SUM(Z9:Z12),0) -> 0 | BE12: =IF(BD12=0,"", "PEAK") ->  | BF12: =IF(BD12=0,0,0.25*BD12/MAX(Z9:Z12)) -> 0 | BG12: =IF($BD12=0,0,0.25*AN12/MAX(F9:F12)) -> 0 | BH12: =IF($BD12=0,0,0.25*AS12/MAX(K9:K12)) -> 0 | BI12: =IF($BD12=0,0,0.25*AX12/MAX(P9:P12)) -> 0 | BJ12: =IF($BD12=0,0,0.25*BC12/MAX(U9:U12)) -> 0
A13: 07:15 AM | B13: ='Cars & Peds'!B13+'Single Units'!B13+'Heavy Vehicles'!B13 -> 17 | C13: ='Cars & Peds'!C13+'Single Units'!C13+'Heavy Vehicles'!C13 -> 19 | D13: ='Cars & Peds'!D13+'Single Units'!D13+'Heavy Vehicles'!D13 -> 23 | E13: ='Cars & Peds'!E13 -> 0 | F13: =B13+C13+D13 -> 59 | G13: ='Cars & Peds'!F13+'Single Units'!E13+'Heavy Vehicles'!E13 -> 2 | H13: ='Cars & Peds'!G13+'Single Units'!F13+'Heavy Vehicles'!F13 -> 76 | I13: ='Cars & Peds'!H13+'Single Units'!G13+'Heavy Vehicles'!G13 -> 6 | J13: ='Cars & Peds'!I13 -> 0 | K13: =G13+H13+I13 -> 84 | L13: ='Cars & Peds'!J13+'Single Units'!H13+'Heavy Vehicles'!H13 -> 73 | M13: ='Cars & Peds'!K13+'Single Units'!I13+'Heavy Vehicles'!I13 -> 47 | N13: ='Cars & Peds'!L13+'Single Units'!J13+'Heavy Vehicles'!J13 -> 14 | O13: ='Cars & Peds'!M13 -> 0 | P13: =L13+M13+N13 -> 134 | Q13: ='Cars & Peds'!N13+'Single Units'!K13+'Heavy Vehicles'!K13 -> 1 | R13: ='Cars & Peds'!O13+'Single Units'!L13+'Heavy Vehicles'!L13 -> 220 | S13: ='Cars & Peds'!P13+'Single Units'!M13+'Heavy Vehicles'!M13 -> 32 | T13: ='Cars & Peds'!Q13 -> 0 | U13: =Q13+R13+S13 -> 253 | V13: =F13+P13 -> 193 | W13: =SUM(V10:V13) -> 353 | X13: =K13+U13 -> 337 | Y13: =SUM(X10:X13) -> 637 | Z13: =F13+K13+P13+U13 -> 530 | AA13: =SUM(Z10:Z13) -> 990 | AD13: =IF(AA13>=$AC$27,AA13,"") ->  | AE13: =IF(AD13=AA13,A13,"") ->  | AF13: =IF(AA13=AD13,AE13-0.03125,0) -> 00:00:00 | AG13: =IF(AA13=AD13,AE13+0.0104166666666666,0) -> 00:00:00 | AJ13: =IF($AA13>=$AC$27,SUM(B10:B13),0) -> 0 | AK13: =IF($AA13>=$AC$27,SUM(C10:C13),0) -> 0 | AL13: =IF($AA13>=$AC$27,SUM(D10:D13),0) -> 0 | AM13: =IF($AA13>=$AC$27,SUM(E10:E13),0) -> 0 | AN13: =AJ13+AK13+AL13 -> 0 | AO13: =IF($AA13>=$AC$27,SUM(G10:G13),0) -> 0 | AP13: =IF($AA13>=$AC$27,SUM(H10:H13),0) -> 0 | AQ13: =IF($AA13>=$AC$27,SUM(I10:I13),0) -> 0 | AR13: =IF($AA13>=$AC$27,SUM(J10:J13),0) -> 0 | AS13: =AO13+AP13+AQ13 -> 0 | AT13: =IF($AA13>=$AC$27,SUM(L10:L13),0) -> 0 | AU13: =IF($AA13>=$AC$27,SUM(M10:M13),0) -> 0 | AV13: =IF($AA13>=$AC$27,SUM(N10:N13),0) -> 0 | AW13: =IF($AA13>=$AC$27,SUM(O10:O13),0) -> 0 | AX13: =AT13+AU13+AV13 -> 0 | AY13: =IF($AA13>=$AC$27,SUM(Q10:Q13),0) -> 0 | AZ13: =IF($AA13>=$AC$27,SUM(R10:R13),0) -> 0 | BA13: =IF($AA13>=$AC$27,SUM(S10:S13),0) -> 0 | BB13: =IF($AA13>=$AC$27,SUM(T10:T13),0) -> 0 | BC13: =AY13+AZ13+BA13 -> 0 | BD13: =IF($AA13>=$AC$27,SUM(Z10:Z13),0) -> 0 | BE13: =IF(BD13=0,"", "PEAK") ->  | BF13: =IF(BD13=0,0,0.25*BD13/MAX(Z10:Z13)) -> 0 | BG13: =IF($BD13=0,0,0.25*AN13/MAX(F10:F13)) -> 0 | BH13: =IF($BD13=0,0,0.25*AS13/MAX(K10:K13)) -> 0 | BI13: =IF($BD13=0,0,0.25*AX13/MAX(P10:P13)) -> 0 | BJ13: =IF($BD13=0,0,0.25*BC13/MAX(U10:U13)) -> 0
A14: 07:30 AM | B14: ='Cars & Peds'!B14+'Single Units'!B14+'Heavy Vehicles'!B14 -> 18 | C14: ='Cars & Peds'!C14+'Single Units'!C14+'Heavy Vehicles'!C14 -> 19 | D14: ='Cars & Peds'!D14+'Single Units'!D14+'Heavy Vehicles'!D14 -> 26 | E14: ='Cars & Peds'!E14 -> 0 | F14: 63 | G14: ='Cars & Peds'!F14+'Single Units'!E14+'Heavy Vehicles'!E14 -> 5 | H14: ='Cars & Peds'!G14+'Single Units'!F14+'Heavy Vehicles'!F14 -> 76 | I14: ='Cars & Peds'!H14+'Single Units'!G14+'Heavy Vehicles'!G14 -> 12 | J14: ='Cars & Peds'!I14 -> 0 | K14: 93 | L14: ='Cars & Peds'!J14+'Single Units'!H14+'Heavy Vehicles'!H14 -> 50 | M14: ='Cars & Peds'!K14+'Single Units'!I14+'Heavy Vehicles'!I14 -> 65 | N14: ='Cars & Peds'!L14+'Single Units'!J14+'Heavy Vehicles'!J14 -> 10 | O14: ='Cars & Peds'!M14 -> 0 | P14: 125 | Q14: ='Cars & Peds'!N14+'Single Units'!K14+'Heavy Vehicles'!K14 -> 1 | R14: ='Cars & Peds'!O14+'Single Units'!L14+'Heavy Vehicles'!L14 -> 213 | S14: ='Cars & Peds'!P14+'Single Units'!M14+'Heavy Vehicles'!M14 -> 30 | T14: ='Cars & Peds'!Q14 -> 0 | U14: 244 | V14: 188 | W14: 541 | X14: 337 | Y14: 974 | Z14: 525 | AA14: =SUM(Z11:Z14) -> 1515 | AF14: 00:00:00 | AG14: 00:00:00 | AJ14: 0 | AK14: 0 | AL14: 0 | AM14: 0 | AN14: 0 | AO14: 0 | AP14: 0 | AQ14: 0 | AR14: 0 | AS14: 0 | AT14: 0 | AU14: 0 | AV14: 0 | AW14: 0 | AX14: 0 | AY14: 0 | AZ14: 0 | BA14: 0 | BB14: 0 | BC14: 0 | BD14: 0 | BF14: 0 | BG14: 0 | BH14: 0 | BI14: 0 | BJ14: 0
A15: 07:45 AM | B15: ='Cars & Peds'!B15+'Single Units'!B15+'Heavy Vehicles'!B15 -> 16 | C15: ='Cars & Peds'!C15+'Single Units'!C15+'Heavy Vehicles'!C15 -> 24 | D15: ='Cars & Peds'!D15+'Single Units'!D15+'Heavy Vehicles'!D15 -> 31 | E15: ='Cars & Peds'!E15 -> 0 | F15: 71 | G15: ='Cars & Peds'!F15+'Single Units'!E15+'Heavy Vehicles'!E15 -> 4 | H15: ='Cars & Peds'!G15+'Single Units'!F15+'Heavy Vehicles'!F15 -> 64 | I15: ='Cars & Peds'!H15+'Single Units'!G15+'Heavy Vehicles'!G15 -> 22 | J15: ='Cars & Peds'!I15 -> 0 | K15: 90 | L15: ='Cars & Peds'!J15+'Single Units'!H15+'Heavy Vehicles'!H15 -> 39 | M15: ='Cars & Peds'!K15+'Single Units'!I15+'Heavy Vehicles'!I15 -> 67 | N15: ='Cars & Peds'!L15+'Single Units'!J15+'Heavy Vehicles'!J15 -> 11 | O15: ='Cars & Peds'!M15 -> 0 | P15: 117 | Q15: ='Cars & Peds'!N15+'Single Units'!K15+'Heavy Vehicles'!K15 -> 2 | R15: ='Cars & Peds'!O15+'Single Units'!L15+'Heavy Vehicles'!L15 -> 154 | S15: ='Cars & Peds'!P15+'Single Units'!M15+'Heavy Vehicles'!M15 -> 45 | T15: ='Cars & Peds'!Q15 -> 0 | U15: 201 | V15: 188 | W15: 729 | X15: 291 | Y15: 1265 | Z15: 479 | AA15: =SUM(Z12:Z15) -> 1994 | AD15: 1994 | AE15: 07:45 AM | AF15: 07:00:00 | AG15: 08:00:00 | AJ15: 64 | AK15: 80 | AL15: 106 | AM15: 0 | AN15: 250 | AO15: 12 | AP15: 283 | AQ15: 47 | AR15: 0 | AS15: 342 | AT15: 224 | AU15: 212 | AV15: 43 | AW15: 0 | AX15: 479 | AY15: 5 | AZ15: 785 | BA15: 133 | BB15: 0 | BC15: 923 | BD15: 1994 | BE15: PEAK | BF15: 0.9405660377 | BG15: 0.8802816901 | BH15: 0.9193548387 | BI15: 0.8936567164 | BJ15: 0.912055336
A16: 08:00 AM | B16: ='Cars & Peds'!B16+'Single Units'!B16+'Heavy Vehicles'!B16 -> 34 | C16: ='Cars & Peds'!C16+'Single Units'!C16+'Heavy Vehicles'!C16 -> 30 | D16: ='Cars & Peds'!D16+'Single Units'!D16+'Heavy Vehicles'!D16 -> 36 | E16: ='Cars & Peds'!E16 -> 0 | F16: 100 | G16: ='Cars & Peds'!F16+'Single Units'!E16+'Heavy Vehicles'!E16 -> 8 | H16: ='Cars & Peds'!G16+'Single Units'!F16+'Heavy Vehicles'!F16 -> 76 | I16: ='Cars & Peds'!H16+'Single Units'!G16+'Heavy Vehicles'!G16 -> 6 | J16: ='Cars & Peds'!I16 -> 0 | K16: 90 | L16: ='Cars & Peds'!J16+'Single Units'!H16+'Heavy Vehicles'!H16 -> 38 | M16: ='Cars & Peds'!K16+'Single Units'!I16+'Heavy Vehicles'!I16 -> 37 | N16: ='Cars & Peds'!L16+'Single Units'!J16+'Heavy Vehicles'!J16 -> 4 | O16: ='Cars & Peds'!M16 -> 0 | P16: 79 | Q16: ='Cars & Peds'!N16+'Single Units'!K16+'Heavy Vehicles'!K16 -> 2 | R16: ='Cars & Peds'!O16+'Single Units'!L16+'Heavy Vehicles'!L16 -> 144 | S16: ='Cars & Peds'!P16+'Single Units'!M16+'Heavy Vehicles'!M16 -> 29 | T16: ='Cars & Peds'!Q16 -> 0 | U16: 175 | V16: 179 | W16: 748 | X16: 265 | Y16: 1230 | Z16: 444 | AA16: =SUM(Z13:Z16) -> 1978 | AF16: 00:00:00 | AG16: 00:00:00 | AJ16: 0 | AK16: 0 | AL16: 0 | AM16: 0 | AN16: 0 | AO16: 0 | AP16: 0 | AQ16: 0 | AR16: 0 | AS16: 0 | AT16: 0 | AU16: 0 | AV16: 0 | AW16: 0 | AX16: 0 | AY16: 0 | AZ16: 0 | BA16: 0 | BB16: 0 | BC16: 0 | BD16: 0 | BF16: 0 | BG16: 0 | BH16: 0 | BI16: 0 | BJ16: 0
A17: 08:15 AM | B17: ='Cars & Peds'!B17+'Single Units'!B17+'Heavy Vehicles'!B17 -> 17 | C17: ='Cars & Peds'!C17+'Single Units'!C17+'Heavy Vehicles'!C17 -> 16 | D17: ='Cars & Peds'!D17+'Single Units'!D17+'Heavy Vehicles'!D17 -> 36 | E17: ='Cars & Peds'!E17 -> 0 | F17: 69 | G17: ='Cars & Peds'!F17+'Single Units'!E17+'Heavy Vehicles'!E17 -> 5 | H17: ='Cars & Peds'!G17+'Single Units'!F17+'Heavy Vehicles'!F17 -> 92 | I17: ='Cars & Peds'!H17+'Single Units'!G17+'Heavy Vehicles'!G17 -> 16 | J17: ='Cars & Peds'!I17 -> 0 | K17: 113 | L17: ='Cars & Peds'!J17+'Single Units'!H17+'Heavy Vehicles'!H17 -> 32 | M17: ='Cars & Peds'!K17+'Single Units'!I17+'Heavy Vehicles'!I17 -> 35 | N17: ='Cars & Peds'!L17+'Single Units'!J17+'Heavy Vehicles'!J17 -> 14 | O17: ='Cars & Peds'!M17 -> 0 | P17: 81 | Q17: ='Cars & Peds'!N17+'Single Units'!K17+'Heavy Vehicles'!K17 -> 1 | R17: ='Cars & Peds'!O17+'Single Units'!L17+'Heavy Vehicles'!L17 -> 138 | S17: ='Cars & Peds'!P17+'Single Units'!M17+'Heavy Vehicles'!M17 -> 15 | T17: ='Cars & Peds'!Q17 -> 0 | U17: 154 | V17: 150 | W17: 705 | X17: 267 | Y17: 1160 | Z17: 417 | AA17: =SUM(Z14:Z17) -> 1865 | AF17: 00:00:00 | AG17: 00:00:00 | AJ17: 0 | AK17: 0 | AL17: 0 | AM17: 0 | AN17: 0 | AO17: 0 | AP17: 0 | AQ17: 0 | AR17: 0 | AS17: 0 | AT17: 0 | AU17: 0 | AV17: 0 | AW17: 0 | AX17: 0 | AY17: 0 | AZ17: 0 | BA17: 0 | BB17: 0 | BC17: 0 | BD17: 0 | BF17: 0 | BG17: 0 | BH17: 0 | BI17: 0 | BJ17: 0
A18: 08:30 AM | B18: ='Cars & Peds'!B18+'Single Units'!B18+'Heavy Vehicles'!B18 -> 11 | C18: ='Cars & Peds'!C18+'Single Units'!C18+'Heavy Vehicles'!C18 -> 17 | D18: ='Cars & Peds'!D18+'Single Units'!D18+'Heavy Vehicles'!D18 -> 15 | E18: ='Cars & Peds'!E18 -> 0 | F18: 43 | G18: ='Cars & Peds'!F18+'Single Units'!E18+'Heavy Vehicles'!E18 -> 3 | H18: ='Cars & Peds'!G18+'Single Units'!F18+'Heavy Vehicles'!F18 -> 93 | I18: ='Cars & Peds'!H18+'Single Units'!G18+'Heavy Vehicles'!G18 -> 18 | J18: ='Cars & Peds'!I18 -> 0 | K18: 114 | L18: ='Cars & Peds'!J18+'Single Units'!H18+'Heavy Vehicles'!H18 -> 39 | M18: ='Cars & Peds'!K18+'Single Units'!I18+'Heavy Vehicles'!I18 -> 17 | N18: ='Cars & Peds'!L18+'Single Units'!J18+'Heavy Vehicles'!J18 -> 11 | O18: ='Cars & Peds'!M18 -> 0 | P18: 67 | Q18: ='Cars & Peds'!N18+'Single Units'!K18+'Heavy Vehicles'!K18 -> 2 | R18: ='Cars & Peds'!O18+'Single Units'!L18+'Heavy Vehicles'!L18 -> 155 | S18: ='Cars & Peds'!P18+'Single Units'!M18+'Heavy Vehicles'!M18 -> 23 | T18: ='Cars & Peds'!Q18 -> 0 | U18: 180 | V18: 110 | W18: 627 | X18: 294 | Y18: 1117 | Z18: 404 | AA18: 1744 | AF18: 00:00:00 | AG18: 00:00:00 | AJ18: 0 | AK18: 0 | AL18: 0 | AM18: 0 | AN18: 0 | AO18: 0 | AP18: 0 | AQ18: 0 | AR18: 0 | AS18: 0 | AT18: 0 | AU18: 0 | AV18: 0 | AW18: 0 | AX18: 0 | AY18: 0 | AZ18: 0 | BA18: 0 | BB18: 0 | BC18: 0 | BD18: 0 | BF18: 0 | BG18: 0 | BH18: 0 | BI18: 0 | BJ18: 0
A19: 08:45 AM | B19: ='Cars & Peds'!B19+'Single Units'!B19+'Heavy Vehicles'!B19 -> 13 | C19: ='Cars & Peds'!C19+'Single Units'!C19+'Heavy Vehicles'!C19 -> 19 | D19: ='Cars & Peds'!D19+'Single Units'!D19+'Heavy Vehicles'!D19 -> 18 | E19: ='Cars & Peds'!E19 -> 0 | F19: 50 | G19: ='Cars & Peds'!F19+'Single Units'!E19+'Heavy Vehicles'!E19 -> 4 | H19: ='Cars & Peds'!G19+'Single Units'!F19+'Heavy Vehicles'!F19 -> 89 | I19: ='Cars & Peds'!H19+'Single Units'!G19+'Heavy Vehicles'!G19 -> 15 | J19: ='Cars & Peds'!I19 -> 0 | K19: 108 | L19: ='Cars & Peds'!J19+'Single Units'!H19+'Heavy Vehicles'!H19 -> 40 | M19: ='Cars & Peds'!K19+'Single Units'!I19+'Heavy Vehicles'!I19 -> 20 | N19: ='Cars & Peds'!L19+'Single Units'!J19+'Heavy Vehicles'!J19 -> 6 | O19: ='Cars & Peds'!M19 -> 0 | P19: 66 | Q19: ='Cars & Peds'!N19+'Single Units'!K19+'Heavy Vehicles'!K19 -> 1 | R19: ='Cars & Peds'!O19+'Single Units'!L19+'Heavy Vehicles'!L19 -> 121 | S19: ='Cars & Peds'!P19+'Single Units'!M19+'Heavy Vehicles'!M19 -> 13 | T19: ='Cars & Peds'!Q19 -> 0 | U19: 135 | V19: 116 | W19: 555 | X19: 243 | Y19: 1069 | Z19: =F19+K19+P19+U19 -> 359 | AA19: 1624 | AF19: 00:00:00 | AG19: 00:00:00 | AJ19: 0 | AK19: 0 | AL19: 0 | AM19: 0 | AN19: 0 | AO19: 0 | AP19: 0 | AQ19: 0 | AR19: 0 | AS19: 0 | AT19: 0 | AU19: 0 | AV19: 0 | AW19: 0 | AX19: 0 | AY19: 0 | AZ19: 0 | BA19: 0 | BB19: 0 | BC19: 0 | BD19: 0 | BF19: 0 | BG19: 0 | BH19: 0 | BI19: 0 | BJ19: 0
A20: 09:00 AM | B20: ='Cars & Peds'!B20+'Single Units'!B20+'Heavy Vehicles'!B20 -> 0 | C20: ='Cars & Peds'!C20+'Single Units'!C20+'Heavy Vehicles'!C20 -> 0 | D20: ='Cars & Peds'!D20+'Single Units'!D20+'Heavy Vehicles'!D20 -> 0 | E20: ='Cars & Peds'!E20 -> 0 | F20: 0 | G20: ='Cars & Peds'!F20+'Single Units'!E20+'Heavy Vehicles'!E20 -> 0 | H20: ='Cars & Peds'!G20+'Single Units'!F20+'Heavy Vehicles'!F20 -> 0 | I20: ='Cars & Peds'!H20+'Single Units'!G20+'Heavy Vehicles'!G20 -> 0 | J20: ='Cars & Peds'!I20 -> 0 | K20: 0 | L20: ='Cars & Peds'!J20+'Single Units'!H20+'Heavy Vehicles'!H20 -> 0 | M20: ='Cars & Peds'!K20+'Single Units'!I20+'Heavy Vehicles'!I20 -> 0 | N20: ='Cars & Peds'!L20+'Single Units'!J20+'Heavy Vehicles'!J20 -> 0 | O20: ='Cars & Peds'!M20 -> 0 | P20: 0 | Q20: ='Cars & Peds'!N20+'Single Units'!K20+'Heavy Vehicles'!K20 -> 0 | R20: ='Cars & Peds'!O20+'Single Units'!L20+'Heavy Vehicles'!L20 -> 0 | S20: ='Cars & Peds'!P20+'Single Units'!M20+'Heavy Vehicles'!M20 -> 0 | T20: ='Cars & Peds'!Q20 -> 0 | U20: 0 | V20: 0 | W20: 376 | X20: 0 | Y20: 804 | Z20: 0 | AA20: =SUM(Z17:Z20) -> 1180 | AF20: 00:00:00 | AG20: 00:00:00 | AJ20: 0 | AK20: 0 | AL20: 0 | AM20: 0 | AN20: 0 | AO20: 0 | AP20: 0 | AQ20: 0 | AR20: 0 | AS20: 0 | AT20: 0 | AU20: 0 | AV20: 0 | AW20: 0 | AX20: 0 | AY20: 0 | AZ20: 0 | BA20: 0 | BB20: 0 | BC20: 0 | BD20: 0 | BF20: 0 | BG20: 0 | BH20: 0 | BI20: 0 | BJ20: 0
A21: 09:15 AM | B21: ='Cars & Peds'!B21+'Single Units'!B21+'Heavy Vehicles'!B21 -> 0 | C21: ='Cars & Peds'!C21+'Single Units'!C21+'Heavy Vehicles'!C21 -> 0 | D21: ='Cars & Peds'!D21+'Single Units'!D21+'Heavy Vehicles'!D21 -> 0 | E21: ='Cars & Peds'!E21 -> 0 | F21: 0 | G21: ='Cars & Peds'!F21+'Single Units'!E21+'Heavy Vehicles'!E21 -> 0 | H21: ='Cars & Peds'!G21+'Single Units'!F21+'Heavy Vehicles'!F21 -> 0 | I21: ='Cars & Peds'!H21+'Single Units'!G21+'Heavy Vehicles'!G21 -> 0 | J21: ='Cars & Peds'!I21 -> 0 | K21: 0 | L21: ='Cars & Peds'!J21+'Single Units'!H21+'Heavy Vehicles'!H21 -> 0 | M21: ='Cars & Peds'!K21+'Single Units'!I21+'Heavy Vehicles'!I21 -> 0 | N21: ='Cars & Peds'!L21+'Single Units'!J21+'Heavy Vehicles'!J21 -> 0 | O21: ='Cars & Peds'!M21 -> 0 | P21: 0 | Q21: ='Cars & Peds'!N21+'Single Units'!K21+'Heavy Vehicles'!K21 -> 0 | R21: ='Cars & Peds'!O21+'Single Units'!L21+'Heavy Vehicles'!L21 -> 0 | S21: ='Cars & Peds'!P21+'Single Units'!M21+'Heavy Vehicles'!M21 -> 0 | T21: ='Cars & Peds'!Q21 -> 0 | U21: 0 | V21: 0 | W21: 226 | X21: 0 | Y21: 537 | Z21: 0 | AA21: 763 | AF21: 00:00:00 | AG21: 00:00:00 | AJ21: 0 | AK21: 0 | AL21: 0 | AM21: 0 | AN21: 0 | AO21: 0 | AP21: 0 | AQ21: 0 | AR21: 0 | AS21: 0 | AT21: 0 | AU21: 0 | AV21: 0 | AW21: 0 | AX21: 0 | AY21: 0 | AZ21: 0 | BA21: 0 | BB21: 0 | BC21: 0 | BD21: 0 | BF21: 0 | BG21: 0 | BH21: 0 | BI21: 0 | BJ21: 0
A22: 09:30 AM | B22: ='Cars & Peds'!B22+'Single Units'!B22+'Heavy Vehicles'!B22 -> 0 | C22: ='Cars & Peds'!C22+'Single Units'!C22+'Heavy Vehicles'!C22 -> 0 | D22: ='Cars & Peds'!D22+'Single Units'!D22+'Heavy Vehicles'!D22 -> 0 | E22: ='Cars & Peds'!E22 -> 0 | F22: 0 | G22: ='Cars & Peds'!F22+'Single Units'!E22+'Heavy Vehicles'!E22 -> 0 | H22: ='Cars & Peds'!G22+'Single Units'!F22+'Heavy Vehicles'!F22 -> 0 | I22: ='Cars & Peds'!H22+'Single Units'!G22+'Heavy Vehicles'!G22 -> 0 | J22: ='Cars & Peds'!I22 -> 0 | K22: 0 | L22: ='Cars & Peds'!J22+'Single Units'!H22+'Heavy Vehicles'!H22 -> 0 | M22: ='Cars & Peds'!K22+'Single Units'!I22+'Heavy Vehicles'!I22 -> 0 | N22: ='Cars & Peds'!L22+'Single Units'!J22+'Heavy Vehicles'!J22 -> 0 | O22: ='Cars & Peds'!M22 -> 0 | P22: 0 | Q22: ='Cars & Peds'!N22+'Single Units'!K22+'Heavy Vehicles'!K22 -> 0 | R22: ='Cars & Peds'!O22+'Single Units'!L22+'Heavy Vehicles'!L22 -> 0 | S22: ='Cars & Peds'!P22+'Single Units'!M22+'Heavy Vehicles'!M22 -> 0 | T22: ='Cars & Peds'!Q22 -> 0 | U22: 0 | V22: 0 | W22: 116 | X22: 0 | Y22: 243 | Z22: 0 | AA22: 359 | AF22: 00:00:00 | AG22: 00:00:00 | AJ22: 0 | AK22: 0 | AL22: 0 | AM22: 0 | AN22: 0 | AO22: 0 | AP22: 0 | AQ22: 0 | AR22: 0 | AS22: 0 | AT22: 0 | AU22: 0 | AV22: 0 | AW22: 0 | AX22: 0 | AY22: 0 | AZ22: 0 | BA22: 0 | BB22: 0 | BC22: 0 | BD22: 0 | BF22: 0 | BG22: 0 | BH22: 0 | BI22: 0 | BJ22: 0
A23: 09:45 AM | B23: ='Cars & Peds'!B23+'Single Units'!B23+'Heavy Vehicles'!B23 -> 0 | C23: ='Cars & Peds'!C23+'Single Units'!C23+'Heavy Vehicles'!C23 -> 0 | D23: ='Cars & Peds'!D23+'Single Units'!D23+'Heavy Vehicles'!D23 -> 0 | E23: ='Cars & Peds'!E23 -> 0 | F23: 0 | G23: ='Cars & Peds'!F23+'Single Units'!E23+'Heavy Vehicles'!E23 -> 0 | H23: ='Cars & Peds'!G23+'Single Units'!F23+'Heavy Vehicles'!F23 -> 0 | I23: ='Cars & Peds'!H23+'Single Units'!G23+'Heavy Vehicles'!G23 -> 0 | J23: ='Cars & Peds'!I23 -> 0 | K23: 0 | L23: ='Cars & Peds'!J23+'Single Units'!H23+'Heavy Vehicles'!H23 -> 0 | M23: ='Cars & Peds'!K23+'Single Units'!I23+'Heavy Vehicles'!I23 -> 0 | N23: ='Cars & Peds'!L23+'Single Units'!J23+'Heavy Vehicles'!J23 -> 0 | O23: ='Cars & Peds'!M23 -> 0 | P23: 0 | Q23: ='Cars & Peds'!N23+'Single Units'!K23+'Heavy Vehicles'!K23 -> 0 | R23: ='Cars & Peds'!O23+'Single Units'!L23+'Heavy Vehicles'!L23 -> 0 | S23: ='Cars & Peds'!P23+'Single Units'!M23+'Heavy Vehicles'!M23 -> 0 | T23: ='Cars & Peds'!Q23 -> 0 | U23: 0 | V23: 0 | W23: 0 | X23: 0 | Y23: 0 | Z23: 0 | AA23: 0 | AF23: 00:00:00 | AG23: 00:00:00 | AJ23: 0 | AK23: 0 | AL23: 0 | AM23: 0 | AN23: 0 | AO23: 0 | AP23: 0 | AQ23: 0 | AR23: 0 | AS23: 0 | AT23: 0 | AU23: 0 | AV23: 0 | AW23: 0 | AX23: 0 | AY23: 0 | AZ23: 0 | BA23: 0 | BB23: 0 | BC23: 0 | BD23: 0 | BF23: 0 | BG23: 0 | BH23: 0 | BI23: 0 | BJ23: 0
A24: 10:00 AM | B24: ='Cars & Peds'!B24+'Single Units'!B24+'Heavy Vehicles'!B24 -> 0 | C24: ='Cars & Peds'!C24+'Single Units'!C24+'Heavy Vehicles'!C24 -> 0 | D24: ='Cars & Peds'!D24+'Single Units'!D24+'Heavy Vehicles'!D24 -> 0 | E24: ='Cars & Peds'!E24 -> 0 | F24: 0 | G24: ='Cars & Peds'!F24+'Single Units'!E24+'Heavy Vehicles'!E24 -> 0 | H24: ='Cars & Peds'!G24+'Single Units'!F24+'Heavy Vehicles'!F24 -> 0 | I24: ='Cars & Peds'!H24+'Single Units'!G24+'Heavy Vehicles'!G24 -> 0 | J24: ='Cars & Peds'!I24 -> 0 | K24: 0 | L24: ='Cars & Peds'!J24+'Single Units'!H24+'Heavy Vehicles'!H24 -> 0 | M24: ='Cars & Peds'!K24+'Single Units'!I24+'Heavy Vehicles'!I24 -> 0 | N24: ='Cars & Peds'!L24+'Single Units'!J24+'Heavy Vehicles'!J24 -> 0 | O24: ='Cars & Peds'!M24 -> 0 | P24: 0 | Q24: ='Cars & Peds'!N24+'Single Units'!K24+'Heavy Vehicles'!K24 -> 0 | R24: ='Cars & Peds'!O24+'Single Units'!L24+'Heavy Vehicles'!L24 -> 0 | S24: ='Cars & Peds'!P24+'Single Units'!M24+'Heavy Vehicles'!M24 -> 0 | T24: ='Cars & Peds'!Q24 -> 0 | U24: 0 | V24: 0 | W24: 0 | X24: 0 | Y24: 0 | Z24: 0 | AA24: 0 | AF24: 00:00:00 | AG24: 00:00:00 | AJ24: 0 | AK24: 0 | AL24: 0 | AM24: 0 | AN24: 0 | AO24: 0 | AP24: 0 | AQ24: 0 | AR24: 0 | AS24: 0 | AT24: 0 | AU24: 0 | AV24: 0 | AW24: 0 | AX24: 0 | AY24: 0 | AZ24: 0 | BA24: 0 | BB24: 0 | BC24: 0 | BD24: 0 | BF24: 0 | BG24: 0 | BH24: 0 | BI24: 0 | BJ24: 0
A25: 10:15 AM | B25: ='Cars & Peds'!B25+'Single Units'!B25+'Heavy Vehicles'!B25 -> 0 | C25: ='Cars & Peds'!C25+'Single Units'!C25+'Heavy Vehicles'!C25 -> 0 | D25: ='Cars & Peds'!D25+'Single Units'!D25+'Heavy Vehicles'!D25 -> 0 | E25: ='Cars & Peds'!E25 -> 0 | F25: 0 | G25: ='Cars & Peds'!F25+'Single Units'!E25+'Heavy Vehicles'!E25 -> 0 | H25: ='Cars & Peds'!G25+'Single Units'!F25+'Heavy Vehicles'!F25 -> 0 | I25: ='Cars & Peds'!H25+'Single Units'!G25+'Heavy Vehicles'!G25 -> 0 | J25: ='Cars & Peds'!I25 -> 0 | K25: 0 | L25: ='Cars & Peds'!J25+'Single Units'!H25+'Heavy Vehicles'!H25 -> 0 | M25: ='Cars & Peds'!K25+'Single Units'!I25+'Heavy Vehicles'!I25 -> 0 | N25: ='Cars & Peds'!L25+'Single Units'!J25+'Heavy Vehicles'!J25 -> 0 | O25: ='Cars & Peds'!M25 -> 0 | P25: 0 | Q25: ='Cars & Peds'!N25+'Single Units'!K25+'Heavy Vehicles'!K25 -> 0 | R25: ='Cars & Peds'!O25+'Single Units'!L25+'Heavy Vehicles'!L25 -> 0 | S25: ='Cars & Peds'!P25+'Single Units'!M25+'Heavy Vehicles'!M25 -> 0 | T25: ='Cars & Peds'!Q25 -> 0 | U25: 0 | V25: 0 | W25: 0 | X25: 0 | Y25: 0 | Z25: 0 | AA25: 0 | AF25: 00:00:00 | AG25: 00:00:00 | AJ25: 0 | AK25: 0 | AL25: 0 | AM25: 0 | AN25: 0 | AO25: 0 | AP25: 0 | AQ25: 0 | AR25: 0 | AS25: 0 | AT25: 0 | AU25: 0 | AV25: 0 | AW25: 0 | AX25: 0 | AY25: 0 | AZ25: 0 | BA25: 0 | BB25: 0 | BC25: 0 | BD25: 0 | BF25: 0 | BG25: 0 | BH25: 0 | BI25: 0 | BJ25: 0
A26: 10:30 AM | B26: ='Cars & Peds'!B26+'Single Units'!B26+'Heavy Vehicles'!B26 -> 0 | C26: ='Cars & Peds'!C26+'Single Units'!C26+'Heavy Vehicles'!C26 -> 0 | D26: ='Cars & Peds'!D26+'Single Units'!D26+'Heavy Vehicles'!D26 -> 0 | E26: ='Cars & Peds'!E26 -> 0 | F26: 0 | G26: ='Cars & Peds'!F26+'Single Units'!E26+'Heavy Vehicles'!E26 -> 0 | H26: ='Cars & Peds'!G26+'Single Units'!F26+'Heavy Vehicles'!F26 -> 0 | I26: ='Cars & Peds'!H26+'Single Units'!G26+'Heavy Vehicles'!G26 -> 0 | J26: ='Cars & Peds'!I26 -> 0 | K26: 0 | L26: ='Cars & Peds'!J26+'Single Units'!H26+'Heavy Vehicles'!H26 -> 0 | M26: ='Cars & Peds'!K26+'Single Units'!I26+'Heavy Vehicles'!I26 -> 0 | N26: ='Cars & Peds'!L26+'Single Units'!J26+'Heavy Vehicles'!J26 -> 0 | O26: ='Cars & Peds'!M26 -> 0 | P26: 0 | Q26: ='Cars & Peds'!N26+'Single Units'!K26+'Heavy Vehicles'!K26 -> 0 | R26: ='Cars & Peds'!O26+'Single Units'!L26+'Heavy Vehicles'!L26 -> 0 | S26: ='Cars & Peds'!P26+'Single Units'!M26+'Heavy Vehicles'!M26 -> 0 | T26: ='Cars & Peds'!Q26 -> 0 | U26: 0 | V26: 0 | W26: 0 | X26: 0 | Y26: 0 | Z26: 0 | AA26: 0 | AF26: 00:00:00 | AG26: 00:00:00 | AJ26: 0 | AK26: 0 | AL26: 0 | AM26: 0 | AN26: 0 | AO26: 0 | AP26: 0 | AQ26: 0 | AR26: 0 | AS26: 0 | AT26: 0 | AU26: 0 | AV26: 0 | AW26: 0 | AX26: 0 | AY26: 0 | AZ26: 0 | BA26: 0 | BB26: 0 | BC26: 0 | BD26: 0 | BF26: 0 | BG26: 0 | BH26: 0 | BI26: 0 | BJ26: 0
A27: 10:45 AM | B27: ='Cars & Peds'!B27+'Single Units'!B27+'Heavy Vehicles'!B27 -> 0 | C27: ='Cars & Peds'!C27+'Single Units'!C27+'Heavy Vehicles'!C27 -> 0 | D27: ='Cars & Peds'!D27+'Single Units'!D27+'Heavy Vehicles'!D27 -> 0 | E27: ='Cars & Peds'!E27 -> 0 | F27: 0 | G27: ='Cars & Peds'!F27+'Single Units'!E27+'Heavy Vehicles'!E27 -> 0 | H27: ='Cars & Peds'!G27+'Single Units'!F27+'Heavy Vehicles'!F27 -> 0 | I27: ='Cars & Peds'!H27+'Single Units'!G27+'Heavy Vehicles'!G27 -> 0 | J27: ='Cars & Peds'!I27 -> 0 | K27: 0 | L27: ='Cars & Peds'!J27+'Single Units'!H27+'Heavy Vehicles'!H27 -> 0 | M27: ='Cars & Peds'!K27+'Single Units'!I27+'Heavy Vehicles'!I27 -> 0 | N27: ='Cars & Peds'!L27+'Single Units'!J27+'Heavy Vehicles'!J27 -> 0 | O27: ='Cars & Peds'!M27 -> 0 | P27: 0 | Q27: ='Cars & Peds'!N27+'Single Units'!K27+'Heavy Vehicles'!K27 -> 0 | R27: ='Cars & Peds'!O27+'Single Units'!L27+'Heavy Vehicles'!L27 -> 0 | S27: ='Cars & Peds'!P27+'Single Units'!M27+'Heavy Vehicles'!M27 -> 0 | T27: ='Cars & Peds'!Q27 -> 0 | U27: 0 | V27: 0 | W27: 0 | X27: 0 | Y27: 0 | Z27: 0 | AA27: 0 | AC27: =MAX(AA12:AA27) -> 1994 | AF27: 00:00:00 | AG27: 00:00:00 | AJ27: 0 | AK27: 0 | AL27: 0 | AM27: 0 | AN27: 0 | AO27: 0 | AP27: 0 | AQ27: 0 | AR27: 0 | AS27: 0 | AT27: 0 | AU27: 0 | AV27: 0 | AW27: 0 | AX27: 0 | AY27: 0 | AZ27: 0 | BA27: 0 | BB27: 0 | BC27: 0 | BD27: 0 | BF27: 0 | BG27: 0 | BH27: 0 | BI27: 0 | BJ27: 0
A28: 11:00 AM | B28: ='Cars & Peds'!B28+'Single Units'!B28+'Heavy Vehicles'!B28 -> 22 | C28: ='Cars & Peds'!C28+'Single Units'!C28+'Heavy Vehicles'!C28 -> 13 | D28: ='Cars & Peds'!D28+'Single Units'!D28+'Heavy Vehicles'!D28 -> 21 | E28: ='Cars & Peds'!E28 -> 0 | F28: 56 | G28: ='Cars & Peds'!F28+'Single Units'!E28+'Heavy Vehicles'!E28 -> 8 | H28: ='Cars & Peds'!G28+'Single Units'!F28+'Heavy Vehicles'!F28 -> 86 | I28: ='Cars & Peds'!H28+'Single Units'!G28+'Heavy Vehicles'!G28 -> 19 | J28: ='Cars & Peds'!I28 -> 0 | K28: 113 | L28: ='Cars & Peds'!J28+'Single Units'!H28+'Heavy Vehicles'!H28 -> 14 | M28: ='Cars & Peds'!K28+'Single Units'!I28+'Heavy Vehicles'!I28 -> 21 | N28: ='Cars & Peds'!L28+'Single Units'!J28+'Heavy Vehicles'!J28 -> 6 | O28: ='Cars & Peds'!M28 -> 0 | P28: 41 | Q28: ='Cars & Peds'!N28+'Single Units'!K28+'Heavy Vehicles'!K28 -> 4 | R28: ='Cars & Peds'!O28+'Single Units'!L28+'Heavy Vehicles'!L28 -> 116 | S28: ='Cars & Peds'!P28+'Single Units'!M28+'Heavy Vehicles'!M28 -> 16 | T28: ='Cars & Peds'!Q28 -> 0 | U28: 136 | V28: 97 | W28: 97 | X28: 249 | Y28: 249 | Z28: 346 | AA28: 346 | AD28: =IF(AA28>=$AC$47,AA28,"") ->  | AF28: 00:00:00 | AG28: 00:00:00 | AH28: =MAX(AF28:AF47) -> 15:00:00 | AI28: =MAX(AG28:AG47) -> 16:00:00 | AJ28: =IF($AA28>=$AC$47,SUM(B25:B28),0) -> 0 | AK28: =IF($AA28>=$AC$47,SUM(C25:C28),0) -> 0 | AL28: =IF($AA28>=$AC$47,SUM(D25:D28),0) -> 0 | AM28: =IF($AA28>=$AC$47,SUM(E25:E28),0) -> 0 | AN28: 0 | AO28: =IF($AA28>=$AC$47,SUM(G25:G28),0) -> 0 | AP28: =IF($AA28>=$AC$47,SUM(H25:H28),0) -> 0 | AQ28: =IF($AA28>=$AC$47,SUM(I25:I28),0) -> 0 | AR28: =IF($AA28>=$AC$47,SUM(J25:J28),0) -> 0 | AS28: 0 | AT28: =IF($AA28>=$AC$47,SUM(L25:L28),0) -> 0 | AU28: =IF($AA28>=$AC$47,SUM(M25:M28),0) -> 0 | AV28: =IF($AA28>=$AC$47,SUM(N25:N28),0) -> 0 | AW28: =IF($AA28>=$AC$47,SUM(O25:O28),0) -> 0 | AX28: 0 | AY28: =IF($AA28>=$AC$47,SUM(Q25:Q28),0) -> 0 | AZ28: =IF($AA28>=$AC$47,SUM(R25:R28),0) -> 0 | BA28: =IF($AA28>=$AC$47,SUM(S25:S28),0) -> 0 | BB28: =IF($AA28>=$AC$47,SUM(T25:T28),0) -> 0 | BC28: 0 | BD28: =IF($AA28>=$AC$47,SUM(Z25:Z28),0) -> 0 | BF28: 0 | BG28: 0 | BH28: 0 | BI28: 0 | BJ28: 0
A29: 11:15 AM | B29: ='Cars & Peds'!B29+'Single Units'!B29+'Heavy Vehicles'!B29 -> 22 | C29: ='Cars & Peds'!C29+'Single Units'!C29+'Heavy Vehicles'!C29 -> 9 | D29: ='Cars & Peds'!D29+'Single Units'!D29+'Heavy Vehicles'!D29 -> 17 | E29: ='Cars & Peds'!E29 -> 0 | F29: 48 | G29: ='Cars & Peds'!F29+'Single Units'!E29+'Heavy Vehicles'!E29 -> 3 | H29: ='Cars & Peds'!G29+'Single Units'!F29+'Heavy Vehicles'!F29 -> 93 | I29: ='Cars & Peds'!H29+'Single Units'!G29+'Heavy Vehicles'!G29 -> 23 | J29: ='Cars & Peds'!I29 -> 0 | K29: 119 | L29: ='Cars & Peds'!J29+'Single Units'!H29+'Heavy Vehicles'!H29 -> 28 | M29: ='Cars & Peds'!K29+'Single Units'!I29+'Heavy Vehicles'!I29 -> 22 | N29: ='Cars & Peds'!L29+'Single Units'!J29+'Heavy Vehicles'!J29 -> 4 | O29: ='Cars & Peds'!M29 -> 0 | P29: 54 | Q29: ='Cars & Peds'!N29+'Single Units'!K29+'Heavy Vehicles'!K29 -> 1 | R29: ='Cars & Peds'!O29+'Single Units'!L29+'Heavy Vehicles'!L29 -> 121 | S29: ='Cars & Peds'!P29+'Single Units'!M29+'Heavy Vehicles'!M29 -> 15 | T29: ='Cars & Peds'!Q29 -> 0 | U29: 137 | V29: 102 | W29: 199 | X29: 256 | Y29: 505 | Z29: 358 | AA29: 704 | AD29: =IF(AA29>=$AC$47,AA29,"") ->  | AF29: 00:00:00 | AG29: 00:00:00 | AJ29: =IF($AA29>=$AC$47,SUM(B26:B29),0) -> 0 | AK29: =IF($AA29>=$AC$47,SUM(C26:C29),0) -> 0 | AL29: =IF($AA29>=$AC$47,SUM(D26:D29),0) -> 0 | AM29: =IF($AA29>=$AC$47,SUM(E26:E29),0) -> 0 | AN29: 0 | AO29: =IF($AA29>=$AC$47,SUM(G26:G29),0) -> 0 | AP29: =IF($AA29>=$AC$47,SUM(H26:H29),0) -> 0 | AQ29: =IF($AA29>=$AC$47,SUM(I26:I29),0) -> 0 | AR29: =IF($AA29>=$AC$47,SUM(J26:J29),0) -> 0 | AS29: 0 | AT29: =IF($AA29>=$AC$47,SUM(L26:L29),0) -> 0 | AU29: =IF($AA29>=$AC$47,SUM(M26:M29),0) -> 0 | AV29: =IF($AA29>=$AC$47,SUM(N26:N29),0) -> 0 | AW29: =IF($AA29>=$AC$47,SUM(O26:O29),0) -> 0 | AX29: 0 | AY29: =IF($AA29>=$AC$47,SUM(Q26:Q29),0) -> 0 | AZ29: =IF($AA29>=$AC$47,SUM(R26:R29),0) -> 0 | BA29: =IF($AA29>=$AC$47,SUM(S26:S29),0) -> 0 | BB29: =IF($AA29>=$AC$47,SUM(T26:T29),0) -> 0 | BC29: 0 | BD29: =IF($AA29>=$AC$47,SUM(Z26:Z29),0) -> 0 | BF29: 0 | BG29: 0 | BH29: 0 | BI29: 0 | BJ29: 0
A30: 11:30 AM | B30: ='Cars & Peds'!B30+'Single Units'!B30+'Heavy Vehicles'!B30 -> 26 | C30: ='Cars & Peds'!C30+'Single Units'!C30+'Heavy Vehicles'!C30 -> 21 | D30: ='Cars & Peds'!D30+'Single Units'!D30+'Heavy Vehicles'!D30 -> 21 | E30: ='Cars & Peds'!E30 -> 0 | F30: 68 | G30: ='Cars & Peds'!F30+'Single Units'!E30+'Heavy Vehicles'!E30 -> 4 | H30: ='Cars & Peds'!G30+'Single Units'!F30+'Heavy Vehicles'!F30 -> 108 | I30: ='Cars & Peds'!H30+'Single Units'!G30+'Heavy Vehicles'!G30 -> 31 | J30: ='Cars & Peds'!I30 -> 0 | K30: 143 | L30: ='Cars & Peds'!J30+'Single Units'!H30+'Heavy Vehicles'!H30 -> 28 | M30: ='Cars & Peds'!K30+'Single Units'!I30+'Heavy Vehicles'!I30 -> 14 | N30: ='Cars & Peds'!L30+'Single Units'!J30+'Heavy Vehicles'!J30 -> 7 | O30: ='Cars & Peds'!M30 -> 0 | P30: 49 | Q30: ='Cars & Peds'!N30+'Single Units'!K30+'Heavy Vehicles'!K30 -> 2 | R30: ='Cars & Peds'!O30+'Single Units'!L30+'Heavy Vehicles'!L30 -> 127 | S30: ='Cars & Peds'!P30+'Single Units'!M30+'Heavy Vehicles'!M30 -> 21 | T30: ='Cars & Peds'!Q30 -> 0 | U30: 150 | V30: 117 | W30: 316 | X30: 293 | Y30: 798 | Z30: 410 | AA30: 1114 | AF30: 00:00:00 | AG30: 00:00:00 | AJ30: 0 | AK30: 0 | AL30: 0 | AM30: 0 | AN30: 0 | AO30: 0 | AP30: 0 | AQ30: 0 | AR30: 0 | AS30: 0 | AT30: 0 | AU30: 0 | AV30: 0 | AW30: 0 | AX30: 0 | AY30: 0 | AZ30: 0 | BA30: 0 | BB30: 0 | BC30: 0 | BD30: 0 | BF30: 0 | BG30: 0 | BH30: 0 | BI30: 0 | BJ30: 0
A31: 11:45 AM | B31: ='Cars & Peds'!B31+'Single Units'!B31+'Heavy Vehicles'!B31 -> 14 | C31: ='Cars & Peds'!C31+'Single Units'!C31+'Heavy Vehicles'!C31 -> 20 | D31: ='Cars & Peds'!D31+'Single Units'!D31+'Heavy Vehicles'!D31 -> 26 | E31: ='Cars & Peds'!E31 -> 0 | F31: 60 | G31: ='Cars & Peds'!F31+'Single Units'!E31+'Heavy Vehicles'!E31 -> 4 | H31: ='Cars & Peds'!G31+'Single Units'!F31+'Heavy Vehicles'!F31 -> 93 | I31: ='Cars & Peds'!H31+'Single Units'!G31+'Heavy Vehicles'!G31 -> 18 | J31: ='Cars & Peds'!I31 -> 0 | K31: 115 | L31: ='Cars & Peds'!J31+'Single Units'!H31+'Heavy Vehicles'!H31 -> 27 | M31: ='Cars & Peds'!K31+'Single Units'!I31+'Heavy Vehicles'!I31 -> 18 | N31: ='Cars & Peds'!L31+'Single Units'!J31+'Heavy Vehicles'!J31 -> 8 | O31: ='Cars & Peds'!M31 -> 0 | P31: 53 | Q31: ='Cars & Peds'!N31+'Single Units'!K31+'Heavy Vehicles'!K31 -> 3 | R31: ='Cars & Peds'!O31+'Single Units'!L31+'Heavy Vehicles'!L31 -> 105 | S31: ='Cars & Peds'!P31+'Single Units'!M31+'Heavy Vehicles'!M31 -> 12 | T31: ='Cars & Peds'!Q31 -> 0 | U31: 120 | V31: 113 | W31: 429 | X31: 235 | Y31: 1033 | Z31: 348 | AA31: 1462 | AF31: 00:00:00 | AG31: 00:00:00 | AJ31: 0 | AK31: 0 | AL31: 0 | AM31: 0 | AN31: 0 | AO31: 0 | AP31: 0 | AQ31: 0 | AR31: 0 | AS31: 0 | AT31: 0 | AU31: 0 | AV31: 0 | AW31: 0 | AX31: 0 | AY31: 0 | AZ31: 0 | BA31: 0 | BB31: 0 | BC31: 0 | BD31: 0 | BF31: 0 | BG31: 0 | BH31: 0 | BI31: 0 | BJ31: 0
A32: 12:00 PM | B32: ='Cars & Peds'!B32+'Single Units'!B32+'Heavy Vehicles'!B32 -> 23 | C32: ='Cars & Peds'!C32+'Single Units'!C32+'Heavy Vehicles'!C32 -> 12 | D32: ='Cars & Peds'!D32+'Single Units'!D32+'Heavy Vehicles'!D32 -> 19 | E32: ='Cars & Peds'!E32 -> 0 | F32: 54 | G32: ='Cars & Peds'!F32+'Single Units'!E32+'Heavy Vehicles'!E32 -> 5 | H32: ='Cars & Peds'!G32+'Single Units'!F32+'Heavy Vehicles'!F32 -> 118 | I32: ='Cars & Peds'!H32+'Single Units'!G32+'Heavy Vehicles'!G32 -> 22 | J32: ='Cars & Peds'!I32 -> 0 | K32: 145 | L32: ='Cars & Peds'!J32+'Single Units'!H32+'Heavy Vehicles'!H32 -> 32 | M32: ='Cars & Peds'!K32+'Single Units'!I32+'Heavy Vehicles'!I32 -> 17 | N32: ='Cars & Peds'!L32+'Single Units'!J32+'Heavy Vehicles'!J32 -> 11 | O32: ='Cars & Peds'!M32 -> 0 | P32: 60 | Q32: ='Cars & Peds'!N32+'Single Units'!K32+'Heavy Vehicles'!K32 -> 4 | R32: ='Cars & Peds'!O32+'Single Units'!L32+'Heavy Vehicles'!L32 -> 131 | S32: ='Cars & Peds'!P32+'Single Units'!M32+'Heavy Vehicles'!M32 -> 21 | T32: ='Cars & Peds'!Q32 -> 0 | U32: 156 | V32: 114 | W32: 446 | X32: 301 | Y32: 1085 | Z32: 415 | AA32: 1531 | AF32: 00:00:00 | AG32: 00:00:00 | AJ32: 0 | AK32: 0 | AL32: 0 | AM32: 0 | AN32: 0 | AO32: 0 | AP32: 0 | AQ32: 0 | AR32: 0 | AS32: 0 | AT32: 0 | AU32: 0 | AV32: 0 | AW32: 0 | AX32: 0 | AY32: 0 | AZ32: 0 | BA32: 0 | BB32: 0 | BC32: 0 | BD32: 0 | BF32: 0 | BG32: 0 | BH32: 0 | BI32: 0 | BJ32: 0
A33: 12:15 PM | B33: ='Cars & Peds'!B33+'Single Units'!B33+'Heavy Vehicles'!B33 -> 16 | C33: ='Cars & Peds'!C33+'Single Units'!C33+'Heavy Vehicles'!C33 -> 16 | D33: ='Cars & Peds'!D33+'Single Units'!D33+'Heavy Vehicles'!D33 -> 20 | E33: ='Cars & Peds'!E33 -> 0 | F33: 52 | G33: ='Cars & Peds'!F33+'Single Units'!E33+'Heavy Vehicles'!E33 -> 6 | H33: ='Cars & Peds'!G33+'Single Units'!F33+'Heavy Vehicles'!F33 -> 129 | I33: ='Cars & Peds'!H33+'Single Units'!G33+'Heavy Vehicles'!G33 -> 20 | J33: ='Cars & Peds'!I33 -> 0 | K33: 155 | L33: ='Cars & Peds'!J33+'Single Units'!H33+'Heavy Vehicles'!H33 -> 30 | M33: ='Cars & Peds'!K33+'Single Units'!I33+'Heavy Vehicles'!I33 -> 20 | N33: ='Cars & Peds'!L33+'Single Units'!J33+'Heavy Vehicles'!J33 -> 4 | O33: ='Cars & Peds'!M33 -> 0 | P33: 54 | Q33: ='Cars & Peds'!N33+'Single Units'!K33+'Heavy Vehicles'!K33 -> 3 | R33: ='Cars & Peds'!O33+'Single Units'!L33+'Heavy Vehicles'!L33 -> 131 | S33: ='Cars & Peds'!P33+'Single Units'!M33+'Heavy Vehicles'!M33 -> 18 | T33: ='Cars & Peds'!Q33 -> 0 | U33: 152 | V33: 106 | W33: 450 | X33: 307 | Y33: 1136 | Z33: 413 | AA33: 1586 | AF33: 00:00:00 | AG33: 00:00:00 | AJ33: 0 | AK33: 0 | AL33: 0 | AM33: 0 | AN33: 0 | AO33: 0 | AP33: 0 | AQ33: 0 | AR33: 0 | AS33: 0 | AT33: 0 | AU33: 0 | AV33: 0 | AW33: 0 | AX33: 0 | AY33: 0 | AZ33: 0 | BA33: 0 | BB33: 0 | BC33: 0 | BD33: 0 | BF33: 0 | BG33: 0 | BH33: 0 | BI33: 0 | BJ33: 0
A34: 12:30 PM | B34: ='Cars & Peds'!B34+'Single Units'!B34+'Heavy Vehicles'!B34 -> 20 | C34: ='Cars & Peds'!C34+'Single Units'!C34+'Heavy Vehicles'!C34 -> 18 | D34: ='Cars & Peds'!D34+'Single Units'!D34+'Heavy Vehicles'!D34 -> 18 | E34: ='Cars & Peds'!E34 -> 0 | F34: 56 | G34: ='Cars & Peds'!F34+'Single Units'!E34+'Heavy Vehicles'!E34 -> 5 | H34: ='Cars & Peds'!G34+'Single Units'!F34+'Heavy Vehicles'!F34 -> 109 | I34: ='Cars & Peds'!H34+'Single Units'!G34+'Heavy Vehicles'!G34 -> 23 | J34: ='Cars & Peds'!I34 -> 0 | K34: 137 | L34: ='Cars & Peds'!J34+'Single Units'!H34+'Heavy Vehicles'!H34 -> 29 | M34: ='Cars & Peds'!K34+'Single Units'!I34+'Heavy Vehicles'!I34 -> 21 | N34: ='Cars & Peds'!L34+'Single Units'!J34+'Heavy Vehicles'!J34 -> 7 | O34: ='Cars & Peds'!M34 -> 0 | P34: 57 | Q34: ='Cars & Peds'!N34+'Single Units'!K34+'Heavy Vehicles'!K34 -> 4 | R34: ='Cars & Peds'!O34+'Single Units'!L34+'Heavy Vehicles'!L34 -> 146 | S34: ='Cars & Peds'!P34+'Single Units'!M34+'Heavy Vehicles'!M34 -> 21 | T34: ='Cars & Peds'!Q34 -> 0 | U34: 171 | V34: 113 | W34: 446 | X34: 308 | Y34: 1151 | Z34: 421 | AA34: 1597 | AF34: 00:00:00 | AG34: 00:00:00 | AJ34: 0 | AK34: 0 | AL34: 0 | AM34: 0 | AN34: 0 | AO34: 0 | AP34: 0 | AQ34: 0 | AR34: 0 | AS34: 0 | AT34: 0 | AU34: 0 | AV34: 0 | AW34: 0 | AX34: 0 | AY34: 0 | AZ34: 0 | BA34: 0 | BB34: 0 | BC34: 0 | BD34: 0 | BF34: 0 | BG34: 0 | BH34: 0 | BI34: 0 | BJ34: 0
A35: 12:45 PM | B35: ='Cars & Peds'!B35+'Single Units'!B35+'Heavy Vehicles'!B35 -> 18 | C35: ='Cars & Peds'!C35+'Single Units'!C35+'Heavy Vehicles'!C35 -> 18 | D35: ='Cars & Peds'!D35+'Single Units'!D35+'Heavy Vehicles'!D35 -> 22 | E35: ='Cars & Peds'!E35 -> 0 | F35: 58 | G35: ='Cars & Peds'!F35+'Single Units'!E35+'Heavy Vehicles'!E35 -> 14 | H35: ='Cars & Peds'!G35+'Single Units'!F35+'Heavy Vehicles'!F35 -> 113 | I35: ='Cars & Peds'!H35+'Single Units'!G35+'Heavy Vehicles'!G35 -> 24 | J35: ='Cars & Peds'!I35 -> 0 | K35: 151 | L35: ='Cars & Peds'!J35+'Single Units'!H35+'Heavy Vehicles'!H35 -> 29 | M35: ='Cars & Peds'!K35+'Single Units'!I35+'Heavy Vehicles'!I35 -> 17 | N35: ='Cars & Peds'!L35+'Single Units'!J35+'Heavy Vehicles'!J35 -> 1 | O35: ='Cars & Peds'!M35 -> 0 | P35: 47 | Q35: ='Cars & Peds'!N35+'Single Units'!K35+'Heavy Vehicles'!K35 -> 2 | R35: ='Cars & Peds'!O35+'Single Units'!L35+'Heavy Vehicles'!L35 -> 96 | S35: ='Cars & Peds'!P35+'Single Units'!M35+'Heavy Vehicles'!M35 -> 22 | T35: ='Cars & Peds'!Q35 -> 0 | U35: 120 | V35: 105 | W35: 438 | X35: 271 | Y35: 1187 | Z35: 376 | AA35: 1625 | AF35: 00:00:00 | AG35: 00:00:00 | AJ35: 0 | AK35: 0 | AL35: 0 | AM35: 0 | AN35: 0 | AO35: 0 | AP35: 0 | AQ35: 0 | AR35: 0 | AS35: 0 | AT35: 0 | AU35: 0 | AV35: 0 | AW35: 0 | AX35: 0 | AY35: 0 | AZ35: 0 | BA35: 0 | BB35: 0 | BC35: 0 | BD35: 0 | BF35: 0 | BG35: 0 | BH35: 0 | BI35: 0 | BJ35: 0
A36: 01:00 PM | B36: ='Cars & Peds'!B36+'Single Units'!B36+'Heavy Vehicles'!B36 -> 1 | C36: ='Cars & Peds'!C36+'Single Units'!C36+'Heavy Vehicles'!C36 -> 0 | D36: ='Cars & Peds'!D36+'Single Units'!D36+'Heavy Vehicles'!D36 -> 0 | E36: ='Cars & Peds'!E36 -> 0 | F36: 1 | G36: ='Cars & Peds'!F36+'Single Units'!E36+'Heavy Vehicles'!E36 -> 0 | H36: ='Cars & Peds'!G36+'Single Units'!F36+'Heavy Vehicles'!F36 -> 0 | I36: ='Cars & Peds'!H36+'Single Units'!G36+'Heavy Vehicles'!G36 -> 0 | J36: ='Cars & Peds'!I36 -> 0 | K36: 0 | L36: ='Cars & Peds'!J36+'Single Units'!H36+'Heavy Vehicles'!H36 -> 1 | M36: ='Cars & Peds'!K36+'Single Units'!I36+'Heavy Vehicles'!I36 -> 0 | N36: ='Cars & Peds'!L36+'Single Units'!J36+'Heavy Vehicles'!J36 -> 0 | O36: ='Cars & Peds'!M36 -> 0 | P36: 1 | Q36: ='Cars & Peds'!N36+'Single Units'!K36+'Heavy Vehicles'!K36 -> 0 | R36: ='Cars & Peds'!O36+'Single Units'!L36+'Heavy Vehicles'!L36 -> 0 | S36: ='Cars & Peds'!P36+'Single Units'!M36+'Heavy Vehicles'!M36 -> 0 | T36: ='Cars & Peds'!Q36 -> 0 | U36: 0 | V36: 2 | W36: 326 | X36: 0 | Y36: 886 | Z36: 2 | AA36: 1212 | AF36: 00:00:00 | AG36: 00:00:00 | AJ36: 0 | AK36: 0 | AL36: 0 | AM36: 0 | AN36: 0 | AO36: 0 | AP36: 0 | AQ36: 0 | AR36: 0 | AS36: 0 | AT36: 0 | AU36: 0 | AV36: 0 | AW36: 0 | AX36: 0 | AY36: 0 | AZ36: 0 | BA36: 0 | BB36: 0 | BC36: 0 | BD36: 0 | BF36: 0 | BG36: 0 | BH36: 0 | BI36: 0 | BJ36: 0
A37: 01:15 PM | B37: ='Cars & Peds'!B37+'Single Units'!B37+'Heavy Vehicles'!B37 -> 0 | C37: ='Cars & Peds'!C37+'Single Units'!C37+'Heavy Vehicles'!C37 -> 0 | D37: ='Cars & Peds'!D37+'Single Units'!D37+'Heavy Vehicles'!D37 -> 0 | E37: ='Cars & Peds'!E37 -> 0 | F37: 0 | G37: ='Cars & Peds'!F37+'Single Units'!E37+'Heavy Vehicles'!E37 -> 0 | H37: ='Cars & Peds'!G37+'Single Units'!F37+'Heavy Vehicles'!F37 -> 0 | I37: ='Cars & Peds'!H37+'Single Units'!G37+'Heavy Vehicles'!G37 -> 0 | J37: ='Cars & Peds'!I37 -> 0 | K37: 0 | L37: ='Cars & Peds'!J37+'Single Units'!H37+'Heavy Vehicles'!H37 -> 0 | M37: ='Cars & Peds'!K37+'Single Units'!I37+'Heavy Vehicles'!I37 -> 0 | N37: ='Cars & Peds'!L37+'Single Units'!J37+'Heavy Vehicles'!J37 -> 0 | O37: ='Cars & Peds'!M37 -> 0 | P37: 0 | Q37: ='Cars & Peds'!N37+'Single Units'!K37+'Heavy Vehicles'!K37 -> 0 | R37: ='Cars & Peds'!O37+'Single Units'!L37+'Heavy Vehicles'!L37 -> 0 | S37: ='Cars & Peds'!P37+'Single Units'!M37+'Heavy Vehicles'!M37 -> 0 | T37: ='Cars & Peds'!Q37 -> 0 | U37: 0 | V37: 0 | W37: 220 | X37: 0 | Y37: 579 | Z37: 0 | AA37: 799 | AF37: 00:00:00 | AG37: 00:00:00 | AJ37: 0 | AK37: 0 | AL37: 0 | AM37: 0 | AN37: 0 | AO37: 0 | AP37: 0 | AQ37: 0 | AR37: 0 | AS37: 0 | AT37: 0 | AU37: 0 | AV37: 0 | AW37: 0 | AX37: 0 | AY37: 0 | AZ37: 0 | BA37: 0 | BB37: 0 | BC37: 0 | BD37: 0 | BF37: 0 | BG37: 0 | BH37: 0 | BI37: 0 | BJ37: 0
A38: 01:30 PM | B38: ='Cars & Peds'!B38+'Single Units'!B38+'Heavy Vehicles'!B38 -> 0 | C38: ='Cars & Peds'!C38+'Single Units'!C38+'Heavy Vehicles'!C38 -> 0 | D38: ='Cars & Peds'!D38+'Single Units'!D38+'Heavy Vehicles'!D38 -> 0 | E38: ='Cars & Peds'!E38 -> 0 | F38: 0 | G38: ='Cars & Peds'!F38+'Single Units'!E38+'Heavy Vehicles'!E38 -> 0 | H38: ='Cars & Peds'!G38+'Single Units'!F38+'Heavy Vehicles'!F38 -> 0 | I38: ='Cars & Peds'!H38+'Single Units'!G38+'Heavy Vehicles'!G38 -> 0 | J38: ='Cars & Peds'!I38 -> 0 | K38: 0 | L38: ='Cars & Peds'!J38+'Single Units'!H38+'Heavy Vehicles'!H38 -> 0 | M38: ='Cars & Peds'!K38+'Single Units'!I38+'Heavy Vehicles'!I38 -> 0 | N38: ='Cars & Peds'!L38+'Single Units'!J38+'Heavy Vehicles'!J38 -> 0 | O38: ='Cars & Peds'!M38 -> 0 | P38: 0 | Q38: ='Cars & Peds'!N38+'Single Units'!K38+'Heavy Vehicles'!K38 -> 0 | R38: ='Cars & Peds'!O38+'Single Units'!L38+'Heavy Vehicles'!L38 -> 0 | S38: ='Cars & Peds'!P38+'Single Units'!M38+'Heavy Vehicles'!M38 -> 0 | T38: ='Cars & Peds'!Q38 -> 0 | U38: 0 | V38: 0 | W38: 107 | X38: 0 | Y38: 271 | Z38: 0 | AA38: 378 | AF38: 00:00:00 | AG38: 00:00:00 | AJ38: 0 | AK38: 0 | AL38: 0 | AM38: 0 | AN38: 0 | AO38: 0 | AP38: 0 | AQ38: 0 | AR38: 0 | AS38: 0 | AT38: 0 | AU38: 0 | AV38: 0 | AW38: 0 | AX38: 0 | AY38: 0 | AZ38: 0 | BA38: 0 | BB38: 0 | BC38: 0 | BD38: 0 | BF38: 0 | BG38: 0 | BH38: 0 | BI38: 0 | BJ38: 0
A39: 01:45 PM | B39: ='Cars & Peds'!B39+'Single Units'!B39+'Heavy Vehicles'!B39 -> 0 | C39: ='Cars & Peds'!C39+'Single Units'!C39+'Heavy Vehicles'!C39 -> 0 | D39: ='Cars & Peds'!D39+'Single Units'!D39+'Heavy Vehicles'!D39 -> 0 | E39: ='Cars & Peds'!E39 -> 0 | F39: 0 | G39: ='Cars & Peds'!F39+'Single Units'!E39+'Heavy Vehicles'!E39 -> 0 | H39: ='Cars & Peds'!G39+'Single Units'!F39+'Heavy Vehicles'!F39 -> 0 | I39: ='Cars & Peds'!H39+'Single Units'!G39+'Heavy Vehicles'!G39 -> 0 | J39: ='Cars & Peds'!I39 -> 0 | K39: 0 | L39: ='Cars & Peds'!J39+'Single Units'!H39+'Heavy Vehicles'!H39 -> 0 | M39: ='Cars & Peds'!K39+'Single Units'!I39+'Heavy Vehicles'!I39 -> 0 | N39: ='Cars & Peds'!L39+'Single Units'!J39+'Heavy Vehicles'!J39 -> 0 | O39: ='Cars & Peds'!M39 -> 0 | P39: 0 | Q39: ='Cars & Peds'!N39+'Single Units'!K39+'Heavy Vehicles'!K39 -> 0 | R39: ='Cars & Peds'!O39+'Single Units'!L39+'Heavy Vehicles'!L39 -> 0 | S39: ='Cars & Peds'!P39+'Single Units'!M39+'Heavy Vehicles'!M39 -> 0 | T39: ='Cars & Peds'!Q39 -> 0 | U39: 0 | V39: 0 | W39: 2 | X39: 0 | Y39: 0 | Z39: 0 | AA39: 2 | AF39: 00:00:00 | AG39: 00:00:00 | AJ39: 0 | AK39: 0 | AL39: 0 | AM39: 0 | AN39: 0 | AO39: 0 | AP39: 0 | AQ39: 0 | AR39: 0 | AS39: 0 | AT39: 0 | AU39: 0 | AV39: 0 | AW39: 0 | AX39: 0 | AY39: 0 | AZ39: 0 | BA39: 0 | BB39: 0 | BC39: 0 | BD39: 0 | BF39: 0 | BG39: 0 | BH39: 0 | BI39: 0 | BJ39: 0
A40: 02:00 PM | B40: ='Cars & Peds'!B40+'Single Units'!B40+'Heavy Vehicles'!B40 -> 6 | C40: ='Cars & Peds'!C40+'Single Units'!C40+'Heavy Vehicles'!C40 -> 25 | D40: ='Cars & Peds'!D40+'Single Units'!D40+'Heavy Vehicles'!D40 -> 13 | E40: ='Cars & Peds'!E40 -> 0 | F40: 44 | G40: ='Cars & Peds'!F40+'Single Units'!E40+'Heavy Vehicles'!E40 -> 3 | H40: ='Cars & Peds'!G40+'Single Units'!F40+'Heavy Vehicles'!F40 -> 130 | I40: ='Cars & Peds'!H40+'Single Units'!G40+'Heavy Vehicles'!G40 -> 24 | J40: ='Cars & Peds'!I40 -> 0 | K40: 157 | L40: ='Cars & Peds'!J40+'Single Units'!H40+'Heavy Vehicles'!H40 -> 36 | M40: ='Cars & Peds'!K40+'Single Units'!I40+'Heavy Vehicles'!I40 -> 20 | N40: ='Cars & Peds'!L40+'Single Units'!J40+'Heavy Vehicles'!J40 -> 8 | O40: ='Cars & Peds'!M40 -> 0 | P40: 64 | Q40: ='Cars & Peds'!N40+'Single Units'!K40+'Heavy Vehicles'!K40 -> 3 | R40: ='Cars & Peds'!O40+'Single Units'!L40+'Heavy Vehicles'!L40 -> 107 | S40: ='Cars & Peds'!P40+'Single Units'!M40+'Heavy Vehicles'!M40 -> 23 | T40: ='Cars & Peds'!Q40 -> 0 | U40: 133 | V40: 108 | W40: 108 | X40: 290 | Y40: 290 | Z40: 398 | AA40: 398 | AF40: 00:00:00 | AG40: 00:00:00 | AJ40: 0 | AK40: 0 | AL40: 0 | AM40: 0 | AN40: 0 | AO40: 0 | AP40: 0 | AQ40: 0 | AR40: 0 | AS40: 0 | AT40: 0 | AU40: 0 | AV40: 0 | AW40: 0 | AX40: 0 | AY40: 0 | AZ40: 0 | BA40: 0 | BB40: 0 | BC40: 0 | BD40: 0 | BF40: 0 | BG40: 0 | BH40: 0 | BI40: 0 | BJ40: 0
A41: 02:15 PM | B41: ='Cars & Peds'!B41+'Single Units'!B41+'Heavy Vehicles'!B41 -> 15 | C41: ='Cars & Peds'!C41+'Single Units'!C41+'Heavy Vehicles'!C41 -> 17 | D41: ='Cars & Peds'!D41+'Single Units'!D41+'Heavy Vehicles'!D41 -> 17 | E41: ='Cars & Peds'!E41 -> 0 | F41: 49 | G41: ='Cars & Peds'!F41+'Single Units'!E41+'Heavy Vehicles'!E41 -> 3 | H41: ='Cars & Peds'!G41+'Single Units'!F41+'Heavy Vehicles'!F41 -> 131 | I41: ='Cars & Peds'!H41+'Single Units'!G41+'Heavy Vehicles'!G41 -> 21 | J41: ='Cars & Peds'!I41 -> 0 | K41: 155 | L41: ='Cars & Peds'!J41+'Single Units'!H41+'Heavy Vehicles'!H41 -> 23 | M41: ='Cars & Peds'!K41+'Single Units'!I41+'Heavy Vehicles'!I41 -> 27 | N41: ='Cars & Peds'!L41+'Single Units'!J41+'Heavy Vehicles'!J41 -> 2 | O41: ='Cars & Peds'!M41 -> 0 | P41: 52 | Q41: ='Cars & Peds'!N41+'Single Units'!K41+'Heavy Vehicles'!K41 -> 3 | R41: ='Cars & Peds'!O41+'Single Units'!L41+'Heavy Vehicles'!L41 -> 114 | S41: ='Cars & Peds'!P41+'Single Units'!M41+'Heavy Vehicles'!M41 -> 22 | T41: ='Cars & Peds'!Q41 -> 0 | U41: 139 | V41: 101 | W41: 209 | X41: 294 | Y41: 584 | Z41: 395 | AA41: 793 | AF41: 00:00:00 | AG41: 00:00:00 | AJ41: 0 | AK41: 0 | AL41: 0 | AM41: 0 | AN41: 0 | AO41: 0 | AP41: 0 | AQ41: 0 | AR41: 0 | AS41: 0 | AT41: 0 | AU41: 0 | AV41: 0 | AW41: 0 | AX41: 0 | AY41: 0 | AZ41: 0 | BA41: 0 | BB41: 0 | BC41: 0 | BD41: 0 | BF41: 0 | BG41: 0 | BH41: 0 | BI41: 0 | BJ41: 0
A42: 02:30 PM | B42: ='Cars & Peds'!B42+'Single Units'!B42+'Heavy Vehicles'!B42 -> 20 | C42: ='Cars & Peds'!C42+'Single Units'!C42+'Heavy Vehicles'!C42 -> 15 | D42: ='Cars & Peds'!D42+'Single Units'!D42+'Heavy Vehicles'!D42 -> 14 | E42: ='Cars & Peds'!E42 -> 0 | F42: 49 | G42: ='Cars & Peds'!F42+'Single Units'!E42+'Heavy Vehicles'!E42 -> 7 | H42: ='Cars & Peds'!G42+'Single Units'!F42+'Heavy Vehicles'!F42 -> 121 | I42: ='Cars & Peds'!H42+'Single Units'!G42+'Heavy Vehicles'!G42 -> 25 | J42: ='Cars & Peds'!I42 -> 0 | K42: 153 | L42: ='Cars & Peds'!J42+'Single Units'!H42+'Heavy Vehicles'!H42 -> 29 | M42: ='Cars & Peds'!K42+'Single Units'!I42+'Heavy Vehicles'!I42 -> 30 | N42: ='Cars & Peds'!L42+'Single Units'!J42+'Heavy Vehicles'!J42 -> 11 | O42: ='Cars & Peds'!M42 -> 0 | P42: 70 | Q42: ='Cars & Peds'!N42+'Single Units'!K42+'Heavy Vehicles'!K42 -> 4 | R42: ='Cars & Peds'!O42+'Single Units'!L42+'Heavy Vehicles'!L42 -> 119 | S42: ='Cars & Peds'!P42+'Single Units'!M42+'Heavy Vehicles'!M42 -> 25 | T42: ='Cars & Peds'!Q42 -> 0 | U42: 148 | V42: 119 | W42: 328 | X42: 301 | Y42: 885 | Z42: 420 | AA42: 1213 | AF42: 00:00:00 | AG42: 00:00:00 | AJ42: 0 | AK42: 0 | AL42: 0 | AM42: 0 | AN42: 0 | AO42: 0 | AP42: 0 | AQ42: 0 | AR42: 0 | AS42: 0 | AT42: 0 | AU42: 0 | AV42: 0 | AW42: 0 | AX42: 0 | AY42: 0 | AZ42: 0 | BA42: 0 | BB42: 0 | BC42: 0 | BD42: 0 | BF42: 0 | BG42: 0 | BH42: 0 | BI42: 0 | BJ42: 0
A43: 02:45 PM | B43: ='Cars & Peds'!B43+'Single Units'!B43+'Heavy Vehicles'!B43 -> 14 | C43: ='Cars & Peds'!C43+'Single Units'!C43+'Heavy Vehicles'!C43 -> 16 | D43: ='Cars & Peds'!D43+'Single Units'!D43+'Heavy Vehicles'!D43 -> 25 | E43: ='Cars & Peds'!E43 -> 0 | F43: 55 | G43: ='Cars & Peds'!F43+'Single Units'!E43+'Heavy Vehicles'!E43 -> 5 | H43: ='Cars & Peds'!G43+'Single Units'!F43+'Heavy Vehicles'!F43 -> 137 | I43: ='Cars & Peds'!H43+'Single Units'!G43+'Heavy Vehicles'!G43 -> 20 | J43: ='Cars & Peds'!I43 -> 0 | K43: 162 | L43: ='Cars & Peds'!J43+'Single Units'!H43+'Heavy Vehicles'!H43 -> 31 | M43: ='Cars & Peds'!K43+'Single Units'!I43+'Heavy Vehicles'!I43 -> 26 | N43: ='Cars & Peds'!L43+'Single Units'!J43+'Heavy Vehicles'!J43 -> 7 | O43: ='Cars & Peds'!M43 -> 0 | P43: 64 | Q43: ='Cars & Peds'!N43+'Single Units'!K43+'Heavy Vehicles'!K43 -> 5 | R43: ='Cars & Peds'!O43+'Single Units'!L43+'Heavy Vehicles'!L43 -> 122 | S43: ='Cars & Peds'!P43+'Single Units'!M43+'Heavy Vehicles'!M43 -> 21 | T43: ='Cars & Peds'!Q43 -> 0 | U43: 148 | V43: 119 | W43: 447 | X43: 310 | Y43: 1195 | Z43: 429 | AA43: 1642 | AF43: 00:00:00 | AG43: 00:00:00 | AJ43: 0 | AK43: 0 | AL43: 0 | AM43: 0 | AN43: 0 | AO43: 0 | AP43: 0 | AQ43: 0 | AR43: 0 | AS43: 0 | AT43: 0 | AU43: 0 | AV43: 0 | AW43: 0 | AX43: 0 | AY43: 0 | AZ43: 0 | BA43: 0 | BB43: 0 | BC43: 0 | BD43: 0 | BF43: 0 | BG43: 0 | BH43: 0 | BI43: 0 | BJ43: 0
A44: 03:00 PM | B44: ='Cars & Peds'!B44+'Single Units'!B44+'Heavy Vehicles'!B44 -> 20 | C44: ='Cars & Peds'!C44+'Single Units'!C44+'Heavy Vehicles'!C44 -> 28 | D44: ='Cars & Peds'!D44+'Single Units'!D44+'Heavy Vehicles'!D44 -> 24 | E44: ='Cars & Peds'!E44 -> 0 | F44: 72 | G44: ='Cars & Peds'!F44+'Single Units'!E44+'Heavy Vehicles'!E44 -> 6 | H44: ='Cars & Peds'!G44+'Single Units'!F44+'Heavy Vehicles'!F44 -> 142 | I44: ='Cars & Peds'!H44+'Single Units'!G44+'Heavy Vehicles'!G44 -> 32 | J44: ='Cars & Peds'!I44 -> 0 | K44: 180 | L44: ='Cars & Peds'!J44+'Single Units'!H44+'Heavy Vehicles'!H44 -> 20 | M44: ='Cars & Peds'!K44+'Single Units'!I44+'Heavy Vehicles'!I44 -> 21 | N44: ='Cars & Peds'!L44+'Single Units'!J44+'Heavy Vehicles'!J44 -> 5 | O44: ='Cars & Peds'!M44 -> 0 | P44: 46 | Q44: ='Cars & Peds'!N44+'Single Units'!K44+'Heavy Vehicles'!K44 -> 1 | R44: ='Cars & Peds'!O44+'Single Units'!L44+'Heavy Vehicles'!L44 -> 118 | S44: ='Cars & Peds'!P44+'Single Units'!M44+'Heavy Vehicles'!M44 -> 19 | T44: ='Cars & Peds'!Q44 -> 0 | U44: 138 | V44: 118 | W44: 457 | X44: 318 | Y44: 1223 | Z44: 436 | AA44: 1680 | AF44: 00:00:00 | AG44: 00:00:00 | AJ44: 0 | AK44: 0 | AL44: 0 | AM44: 0 | AN44: 0 | AO44: 0 | AP44: 0 | AQ44: 0 | AR44: 0 | AS44: 0 | AT44: 0 | AU44: 0 | AV44: 0 | AW44: 0 | AX44: 0 | AY44: 0 | AZ44: 0 | BA44: 0 | BB44: 0 | BC44: 0 | BD44: 0 | BF44: 0 | BG44: 0 | BH44: 0 | BI44: 0 | BJ44: 0
A45: 03:15 PM | B45: ='Cars & Peds'!B45+'Single Units'!B45+'Heavy Vehicles'!B45 -> 56 | C45: ='Cars & Peds'!C45+'Single Units'!C45+'Heavy Vehicles'!C45 -> 52 | D45: ='Cars & Peds'!D45+'Single Units'!D45+'Heavy Vehicles'!D45 -> 30 | E45: ='Cars & Peds'!E45 -> 0 | F45: 138 | G45: ='Cars & Peds'!F45+'Single Units'!E45+'Heavy Vehicles'!E45 -> 4 | H45: ='Cars & Peds'!G45+'Single Units'!F45+'Heavy Vehicles'!F45 -> 141 | I45: ='Cars & Peds'!H45+'Single Units'!G45+'Heavy Vehicles'!G45 -> 35 | J45: ='Cars & Peds'!I45 -> 0 | K45: 180 | L45: ='Cars & Peds'!J45+'Single Units'!H45+'Heavy Vehicles'!H45 -> 22 | M45: ='Cars & Peds'!K45+'Single Units'!I45+'Heavy Vehicles'!I45 -> 26 | N45: ='Cars & Peds'!L45+'Single Units'!J45+'Heavy Vehicles'!J45 -> 8 | O45: ='Cars & Peds'!M45 -> 0 | P45: 56 | Q45: ='Cars & Peds'!N45+'Single Units'!K45+'Heavy Vehicles'!K45 -> 7 | R45: ='Cars & Peds'!O45+'Single Units'!L45+'Heavy Vehicles'!L45 -> 117 | S45: ='Cars & Peds'!P45+'Single Units'!M45+'Heavy Vehicles'!M45 -> 15 | T45: ='Cars & Peds'!Q45 -> 0 | U45: 139 | V45: 194 | W45: 550 | X45: 319 | Y45: 1248 | Z45: 513 | AA45: 1798 | AF45: 00:00:00 | AG45: 00:00:00 | AJ45: 0 | AK45: 0 | AL45: 0 | AM45: 0 | AN45: 0 | AO45: 0 | AP45: 0 | AQ45: 0 | AR45: 0 | AS45: 0 | AT45: 0 | AU45: 0 | AV45: 0 | AW45: 0 | AX45: 0 | AY45: 0 | AZ45: 0 | BA45: 0 | BB45: 0 | BC45: 0 | BD45: 0 | BF45: 0 | BG45: 0 | BH45: 0 | BI45: 0 | BJ45: 0
A46: 03:30 PM | B46: ='Cars & Peds'!B46+'Single Units'!B46+'Heavy Vehicles'!B46 -> 28 | C46: ='Cars & Peds'!C46+'Single Units'!C46+'Heavy Vehicles'!C46 -> 42 | D46: ='Cars & Peds'!D46+'Single Units'!D46+'Heavy Vehicles'!D46 -> 27 | E46: ='Cars & Peds'!E46 -> 0 | F46: 97 | G46: ='Cars & Peds'!F46+'Single Units'!E46+'Heavy Vehicles'!E46 -> 5 | H46: ='Cars & Peds'!G46+'Single Units'!F46+'Heavy Vehicles'!F46 -> 178 | I46: ='Cars & Peds'!H46+'Single Units'!G46+'Heavy Vehicles'!G46 -> 47 | J46: ='Cars & Peds'!I46 -> 0 | K46: 230 | L46: ='Cars & Peds'!J46+'Single Units'!H46+'Heavy Vehicles'!H46 -> 30 | M46: ='Cars & Peds'!K46+'Single Units'!I46+'Heavy Vehicles'!I46 -> 26 | N46: ='Cars & Peds'!L46+'Single Units'!J46+'Heavy Vehicles'!J46 -> 8 | O46: ='Cars & Peds'!M46 -> 0 | P46: 64 | Q46: ='Cars & Peds'!N46+'Single Units'!K46+'Heavy Vehicles'!K46 -> 4 | R46: ='Cars & Peds'!O46+'Single Units'!L46+'Heavy Vehicles'!L46 -> 119 | S46: ='Cars & Peds'!P46+'Single Units'!M46+'Heavy Vehicles'!M46 -> 18 | T46: ='Cars & Peds'!Q46 -> 0 | U46: 141 | V46: 161 | W46: 592 | X46: 371 | Y46: 1318 | Z46: 532 | AA46: 1910 | AF46: 00:00:00 | AG46: 00:00:00 | AJ46: 0 | AK46: 0 | AL46: 0 | AM46: 0 | AN46: 0 | AO46: 0 | AP46: 0 | AQ46: 0 | AR46: 0 | AS46: 0 | AT46: 0 | AU46: 0 | AV46: 0 | AW46: 0 | AX46: 0 | AY46: 0 | AZ46: 0 | BA46: 0 | BB46: 0 | BC46: 0 | BD46: 0 | BF46: 0 | BG46: 0 | BH46: 0 | BI46: 0 | BJ46: 0
A47: 03:45 PM | B47: ='Cars & Peds'!B47+'Single Units'!B47+'Heavy Vehicles'!B47 -> 29 | C47: ='Cars & Peds'!C47+'Single Units'!C47+'Heavy Vehicles'!C47 -> 34 | D47: ='Cars & Peds'!D47+'Single Units'!D47+'Heavy Vehicles'!D47 -> 25 | E47: ='Cars & Peds'!E47 -> 0 | F47: 88 | G47: ='Cars & Peds'!F47+'Single Units'!E47+'Heavy Vehicles'!E47 -> 4 | H47: ='Cars & Peds'!G47+'Single Units'!F47+'Heavy Vehicles'!F47 -> 189 | I47: ='Cars & Peds'!H47+'Single Units'!G47+'Heavy Vehicles'!G47 -> 37 | J47: ='Cars & Peds'!I47 -> 0 | K47: 230 | L47: ='Cars & Peds'!J47+'Single Units'!H47+'Heavy Vehicles'!H47 -> 23 | M47: ='Cars & Peds'!K47+'Single Units'!I47+'Heavy Vehicles'!I47 -> 33 | N47: ='Cars & Peds'!L47+'Single Units'!J47+'Heavy Vehicles'!J47 -> 15 | O47: ='Cars & Peds'!M47 -> 0 | P47: 71 | Q47: ='Cars & Peds'!N47+'Single Units'!K47+'Heavy Vehicles'!K47 -> 5 | R47: ='Cars & Peds'!O47+'Single Units'!L47+'Heavy Vehicles'!L47 -> 117 | S47: ='Cars & Peds'!P47+'Single Units'!M47+'Heavy Vehicles'!M47 -> 28 | T47: ='Cars & Peds'!Q47 -> 0 | U47: 150 | V47: 159 | W47: 632 | X47: 380 | Y47: 1388 | Z47: 539 | AA47: 2020 | AC47: =MAX(AA28:AA47) -> 2020 | AD47: 2020 | AE47: 03:45 PM | AF47: 15:00:00 | AG47: 16:00:00 | AJ47: 133 | AK47: 156 | AL47: 106 | AM47: 0 | AN47: 395 | AO47: 19 | AP47: 650 | AQ47: 151 | AR47: 0 | AS47: 820 | AT47: 95 | AU47: 106 | AV47: 36 | AW47: 0 | AX47: 237 | AY47: 17 | AZ47: 471 | BA47: 80 | BB47: 0 | BC47: 568 | BD47: 2020 | BE47: PEAK | BF47: 0.9369202226 | BG47: 0.7155797101 | BH47: 0.8913043478 | BI47: 0.8345070423 | BJ47: 0.9466666667
A48: 04:00 PM | B48: ='Cars & Peds'!B48+'Single Units'!B48+'Heavy Vehicles'!B48 -> 19 | C48: ='Cars & Peds'!C48+'Single Units'!C48+'Heavy Vehicles'!C48 -> 46 | D48: ='Cars & Peds'!D48+'Single Units'!D48+'Heavy Vehicles'!D48 -> 20 | E48: ='Cars & Peds'!E48 -> 0 | F48: 85 | G48: ='Cars & Peds'!F48+'Single Units'!E48+'Heavy Vehicles'!E48 -> 2 | H48: ='Cars & Peds'!G48+'Single Units'!F48+'Heavy Vehicles'!F48 -> 186 | I48: ='Cars & Peds'!H48+'Single Units'!G48+'Heavy Vehicles'!G48 -> 48 | J48: ='Cars & Peds'!I48 -> 0 | K48: 236 | L48: ='Cars & Peds'!J48+'Single Units'!H48+'Heavy Vehicles'!H48 -> 32 | M48: ='Cars & Peds'!K48+'Single Units'!I48+'Heavy Vehicles'!I48 -> 18 | N48: ='Cars & Peds'!L48+'Single Units'!J48+'Heavy Vehicles'!J48 -> 10 | O48: ='Cars & Peds'!M48 -> 0 | P48: 60 | Q48: ='Cars & Peds'!N48+'Single Units'!K48+'Heavy Vehicles'!K48 -> 5 | R48: ='Cars & Peds'!O48+'Single Units'!L48+'Heavy Vehicles'!L48 -> 147 | S48: ='Cars & Peds'!P48+'Single Units'!M48+'Heavy Vehicles'!M48 -> 25 | T48: ='Cars & Peds'!Q48 -> 0 | U48: 177 | V48: 145 | W48: 659 | X48: 413 | Y48: 1483 | Z48: 558 | AA48: 2142 | AD48: =IF(AA48>=$AC$55,AA48,"") ->  | AF48: 00:00:00 | AG48: 00:00:00 | AH48: =MAX(AF48:AF55) -> 16:30:00 | AI48: =MAX(AG48:AG55) -> 17:30:00 | AJ48: =IF($AA48>=$AC$55,SUM(B45:B48),0) -> 0 | AK48: =IF($AA48>=$AC$55,SUM(C45:C48),0) -> 0 | AL48: =IF($AA48>=$AC$55,SUM(D45:D48),0) -> 0 | AM48: =IF($AA48>=$AC$55,SUM(E45:E48),0) -> 0 | AN48: 0 | AO48: =IF($AA48>=$AC$55,SUM(G45:G48),0) -> 0 | AP48: =IF($AA48>=$AC$55,SUM(H45:H48),0) -> 0 | AQ48: =IF($AA48>=$AC$55,SUM(I45:I48),0) -> 0 | AR48: =IF($AA48>=$AC$55,SUM(J45:J48),0) -> 0 | AS48: 0 | AT48: =IF($AA48>=$AC$55,SUM(L45:L48),0) -> 0 | AU48: =IF($AA48>=$AC$55,SUM(M45:M48),0) -> 0 | AV48: =IF($AA48>=$AC$55,SUM(N45:N48),0) -> 0 | AW48: =IF($AA48>=$AC$55,SUM(O45:O48),0) -> 0 | AX48: 0 | AY48: =IF($AA48>=$AC$55,SUM(Q45:Q48),0) -> 0 | AZ48: =IF($AA48>=$AC$55,SUM(R45:R48),0) -> 0 | BA48: =IF($AA48>=$AC$55,SUM(S45:S48),0) -> 0 | BB48: =IF($AA48>=$AC$55,SUM(T45:T48),0) -> 0 | BC48: 0 | BD48: =IF($AA48>=$AC$55,SUM(Z45:Z48),0) -> 0 | BF48: 0 | BG48: 0 | BH48: 0 | BI48: 0 | BJ48: 0
A49: 04:15 PM | B49: ='Cars & Peds'!B49+'Single Units'!B49+'Heavy Vehicles'!B49 -> 34 | C49: ='Cars & Peds'!C49+'Single Units'!C49+'Heavy Vehicles'!C49 -> 42 | D49: ='Cars & Peds'!D49+'Single Units'!D49+'Heavy Vehicles'!D49 -> 22 | E49: ='Cars & Peds'!E49 -> 0 | F49: 98 | G49: ='Cars & Peds'!F49+'Single Units'!E49+'Heavy Vehicles'!E49 -> 2 | H49: ='Cars & Peds'!G49+'Single Units'!F49+'Heavy Vehicles'!F49 -> 178 | I49: ='Cars & Peds'!H49+'Single Units'!G49+'Heavy Vehicles'!G49 -> 42 | J49: ='Cars & Peds'!I49 -> 0 | K49: 222 | L49: ='Cars & Peds'!J49+'Single Units'!H49+'Heavy Vehicles'!H49 -> 24 | M49: ='Cars & Peds'!K49+'Single Units'!I49+'Heavy Vehicles'!I49 -> 30 | N49: ='Cars & Peds'!L49+'Single Units'!J49+'Heavy Vehicles'!J49 -> 16 | O49: ='Cars & Peds'!M49 -> 0 | P49: 70 | Q49: ='Cars & Peds'!N49+'Single Units'!K49+'Heavy Vehicles'!K49 -> 7 | R49: ='Cars & Peds'!O49+'Single Units'!L49+'Heavy Vehicles'!L49 -> 101 | S49: ='Cars & Peds'!P49+'Single Units'!M49+'Heavy Vehicles'!M49 -> 25 | T49: ='Cars & Peds'!Q49 -> 0 | U49: 133 | V49: 168 | W49: 633 | X49: 355 | Y49: 1519 | Z49: 523 | AA49: 2152 | AD49: =IF(AA49>=$AC$55,AA49,"") ->  | AF49: 00:00:00 | AG49: 00:00:00 | AJ49: 0 | AK49: =IF($AA49>=$AC$55,SUM(C46:C49),0) -> 0 | AL49: =IF($AA49>=$AC$55,SUM(D46:D49),0) -> 0 | AM49: 0 | AN49: 0 | AO49: 0 | AP49: 0 | AQ49: 0 | AR49: 0 | AS49: 0 | AT49: 0 | AU49: 0 | AV49: 0 | AW49: =IF($AA49>=$AC$55,SUM(O46:O49),0) -> 0 | AX49: 0 | AY49: 0 | AZ49: =IF($AA49>=$AC$55,SUM(R46:R49),0) -> 0 | BA49: 0 | BB49: 0 | BC49: 0 | BD49: 0 | BF49: 0 | BG49: 0 | BH49: 0 | BI49: 0 | BJ49: 0
A50: 04:30 PM | B50: ='Cars & Peds'!B50+'Single Units'!B50+'Heavy Vehicles'!B50 -> 25 | C50: ='Cars & Peds'!C50+'Single Units'!C50+'Heavy Vehicles'!C50 -> 32 | D50: ='Cars & Peds'!D50+'Single Units'!D50+'Heavy Vehicles'!D50 -> 27 | E50: ='Cars & Peds'!E50 -> 0 | F50: 84 | G50: ='Cars & Peds'!F50+'Single Units'!E50+'Heavy Vehicles'!E50 -> 8 | H50: ='Cars & Peds'!G50+'Single Units'!F50+'Heavy Vehicles'!F50 -> 192 | I50: ='Cars & Peds'!H50+'Single Units'!G50+'Heavy Vehicles'!G50 -> 56 | J50: ='Cars & Peds'!I50 -> 0 | K50: 256 | L50: ='Cars & Peds'!J50+'Single Units'!H50+'Heavy Vehicles'!H50 -> 28 | M50: ='Cars & Peds'!K50+'Single Units'!I50+'Heavy Vehicles'!I50 -> 28 | N50: ='Cars & Peds'!L50+'Single Units'!J50+'Heavy Vehicles'!J50 -> 11 | O50: ='Cars & Peds'!M50 -> 0 | P50: 67 | Q50: ='Cars & Peds'!N50+'Single Units'!K50+'Heavy Vehicles'!K50 -> 4 | R50: ='Cars & Peds'!O50+'Single Units'!L50+'Heavy Vehicles'!L50 -> 129 | S50: ='Cars & Peds'!P50+'Single Units'!M50+'Heavy Vehicles'!M50 -> 22 | T50: ='Cars & Peds'!Q50 -> 0 | U50: 155 | V50: 151 | W50: 623 | X50: 411 | Y50: 1559 | Z50: 562 | AA50: 2182 | AF50: 00:00:00 | AG50: 00:00:00 | AJ50: 0 | AK50: 0 | AL50: 0 | AM50: 0 | AN50: 0 | AO50: 0 | AP50: 0 | AQ50: 0 | AR50: 0 | AS50: 0 | AT50: 0 | AU50: 0 | AV50: 0 | AW50: 0 | AX50: 0 | AY50: 0 | AZ50: 0 | BA50: 0 | BB50: 0 | BC50: 0 | BD50: 0 | BF50: 0 | BG50: 0 | BH50: 0 | BI50: 0 | BJ50: 0
A51: 04:45 PM | B51: ='Cars & Peds'!B51+'Single Units'!B51+'Heavy Vehicles'!B51 -> 28 | C51: ='Cars & Peds'!C51+'Single Units'!C51+'Heavy Vehicles'!C51 -> 50 | D51: ='Cars & Peds'!D51+'Single Units'!D51+'Heavy Vehicles'!D51 -> 32 | E51: ='Cars & Peds'!E51 -> 0 | F51: 110 | G51: ='Cars & Peds'!F51+'Single Units'!E51+'Heavy Vehicles'!E51 -> 6 | H51: ='Cars & Peds'!G51+'Single Units'!F51+'Heavy Vehicles'!F51 -> 172 | I51: ='Cars & Peds'!H51+'Single Units'!G51+'Heavy Vehicles'!G51 -> 53 | J51: ='Cars & Peds'!I51 -> 0 | K51: 231 | L51: ='Cars & Peds'!J51+'Single Units'!H51+'Heavy Vehicles'!H51 -> 22 | M51: ='Cars & Peds'!K51+'Single Units'!I51+'Heavy Vehicles'!I51 -> 23 | N51: ='Cars & Peds'!L51+'Single Units'!J51+'Heavy Vehicles'!J51 -> 4 | O51: ='Cars & Peds'!M51 -> 0 | P51: 49 | Q51: ='Cars & Peds'!N51+'Single Units'!K51+'Heavy Vehicles'!K51 -> 1 | R51: ='Cars & Peds'!O51+'Single Units'!L51+'Heavy Vehicles'!L51 -> 144 | S51: ='Cars & Peds'!P51+'Single Units'!M51+'Heavy Vehicles'!M51 -> 19 | T51: ='Cars & Peds'!Q51 -> 0 | U51: 164 | V51: 159 | W51: 623 | X51: 395 | Y51: 1574 | Z51: 554 | AA51: 2197 | AF51: 00:00:00 | AG51: 00:00:00 | AJ51: 0 | AK51: 0 | AL51: 0 | AM51: 0 | AN51: 0 | AO51: 0 | AP51: 0 | AQ51: 0 | AR51: 0 | AS51: 0 | AT51: 0 | AU51: 0 | AV51: 0 | AW51: 0 | AX51: 0 | AY51: 0 | AZ51: 0 | BA51: 0 | BB51: 0 | BC51: 0 | BD51: 0 | BF51: 0 | BG51: 0 | BH51: 0 | BI51: 0 | BJ51: 0
A52: 05:00 PM | B52: ='Cars & Peds'!B52+'Single Units'!B52+'Heavy Vehicles'!B52 -> 29 | C52: ='Cars & Peds'!C52+'Single Units'!C52+'Heavy Vehicles'!C52 -> 56 | D52: ='Cars & Peds'!D52+'Single Units'!D52+'Heavy Vehicles'!D52 -> 18 | E52: ='Cars & Peds'!E52 -> 0 | F52: 103 | G52: ='Cars & Peds'!F52+'Single Units'!E52+'Heavy Vehicles'!E52 -> 10 | H52: ='Cars & Peds'!G52+'Single Units'!F52+'Heavy Vehicles'!F52 -> 185 | I52: ='Cars & Peds'!H52+'Single Units'!G52+'Heavy Vehicles'!G52 -> 62 | J52: ='Cars & Peds'!I52 -> 0 | K52: 257 | L52: ='Cars & Peds'!J52+'Single Units'!H52+'Heavy Vehicles'!H52 -> 24 | M52: ='Cars & Peds'!K52+'Single Units'!I52+'Heavy Vehicles'!I52 -> 24 | N52: ='Cars & Peds'!L52+'Single Units'!J52+'Heavy Vehicles'!J52 -> 10 | O52: ='Cars & Peds'!M52 -> 0 | P52: 58 | Q52: ='Cars & Peds'!N52+'Single Units'!K52+'Heavy Vehicles'!K52 -> 3 | R52: ='Cars & Peds'!O52+'Single Units'!L52+'Heavy Vehicles'!L52 -> 110 | S52: ='Cars & Peds'!P52+'Single Units'!M52+'Heavy Vehicles'!M52 -> 17 | T52: ='Cars & Peds'!Q52 -> 0 | U52: 130 | V52: 161 | W52: 639 | X52: 387 | Y52: 1548 | Z52: 548 | AA52: 2187 | AF52: 00:00:00 | AG52: 00:00:00 | AJ52: 0 | AK52: 0 | AL52: 0 | AM52: 0 | AN52: 0 | AO52: 0 | AP52: 0 | AQ52: 0 | AR52: 0 | AS52: 0 | AT52: 0 | AU52: 0 | AV52: 0 | AW52: 0 | AX52: 0 | AY52: 0 | AZ52: 0 | BA52: 0 | BB52: 0 | BC52: 0 | BD52: 0 | BF52: 0 | BG52: 0 | BH52: 0 | BI52: 0 | BJ52: 0
A53: 05:15 PM | B53: ='Cars & Peds'!B53+'Single Units'!B53+'Heavy Vehicles'!B53 -> 27 | C53: ='Cars & Peds'!C53+'Single Units'!C53+'Heavy Vehicles'!C53 -> 59 | D53: ='Cars & Peds'!D53+'Single Units'!D53+'Heavy Vehicles'!D53 -> 30 | E53: ='Cars & Peds'!E53 -> 0 | F53: 116 | G53: ='Cars & Peds'!F53+'Single Units'!E53+'Heavy Vehicles'!E53 -> 6 | H53: ='Cars & Peds'!G53+'Single Units'!F53+'Heavy Vehicles'!F53 -> 193 | I53: ='Cars & Peds'!H53+'Single Units'!G53+'Heavy Vehicles'!G53 -> 52 | J53: ='Cars & Peds'!I53 -> 0 | K53: 251 | L53: ='Cars & Peds'!J53+'Single Units'!H53+'Heavy Vehicles'!H53 -> 16 | M53: ='Cars & Peds'!K53+'Single Units'!I53+'Heavy Vehicles'!I53 -> 25 | N53: ='Cars & Peds'!L53+'Single Units'!J53+'Heavy Vehicles'!J53 -> 12 | O53: ='Cars & Peds'!M53 -> 0 | P53: 53 | Q53: ='Cars & Peds'!N53+'Single Units'!K53+'Heavy Vehicles'!K53 -> 6 | R53: ='Cars & Peds'!O53+'Single Units'!L53+'Heavy Vehicles'!L53 -> 123 | S53: ='Cars & Peds'!P53+'Single Units'!M53+'Heavy Vehicles'!M53 -> 20 | T53: ='Cars & Peds'!Q53 -> 0 | U53: 149 | V53: 169 | W53: 640 | X53: 400 | Y53: 1593 | Z53: 569 | AA53: 2233 | AD53: 2233 | AE53: 05:15 PM | AF53: 16:30:00 | AG53: 17:30:00 | AJ53: 109 | AK53: 197 | AL53: 107 | AM53: 0 | AN53: 413 | AO53: 30 | AP53: 742 | AQ53: 223 | AR53: 0 | AS53: 995 | AT53: 90 | AU53: 100 | AV53: 37 | AW53: 0 | AX53: 227 | AY53: 14 | AZ53: 506 | BA53: 78 | BB53: 0 | BC53: 598 | BD53: 2233 | BE53: PEAK | BF53: 0.9811072056 | BG53: 0.8900862069 | BH53: 0.9678988327 | BI53: 0.8470149254 | BJ53: 0.9115853659
A54: 05:30 PM | B54: ='Cars & Peds'!B54+'Single Units'!B54+'Heavy Vehicles'!B54 -> 30 | C54: ='Cars & Peds'!C54+'Single Units'!C54+'Heavy Vehicles'!C54 -> 40 | D54: ='Cars & Peds'!D54+'Single Units'!D54+'Heavy Vehicles'!D54 -> 34 | E54: ='Cars & Peds'!E54 -> 0 | F54: 104 | G54: ='Cars & Peds'!F54+'Single Units'!E54+'Heavy Vehicles'!E54 -> 3 | H54: ='Cars & Peds'!G54+'Single Units'!F54+'Heavy Vehicles'!F54 -> 159 | I54: ='Cars & Peds'!H54+'Single Units'!G54+'Heavy Vehicles'!G54 -> 58 | J54: ='Cars & Peds'!I54 -> 0 | K54: 220 | L54: ='Cars & Peds'!J54+'Single Units'!H54+'Heavy Vehicles'!H54 -> 28 | M54: ='Cars & Peds'!K54+'Single Units'!I54+'Heavy Vehicles'!I54 -> 29 | N54: ='Cars & Peds'!L54+'Single Units'!J54+'Heavy Vehicles'!J54 -> 11 | O54: ='Cars & Peds'!M54 -> 0 | P54: 68 | Q54: ='Cars & Peds'!N54+'Single Units'!K54+'Heavy Vehicles'!K54 -> 5 | R54: ='Cars & Peds'!O54+'Single Units'!L54+'Heavy Vehicles'!L54 -> 120 | S54: ='Cars & Peds'!P54+'Single Units'!M54+'Heavy Vehicles'!M54 -> 21 | T54: ='Cars & Peds'!Q54 -> 0 | U54: 146 | V54: 172 | W54: 661 | X54: 366 | Y54: 1548 | Z54: 538 | AA54: 2209 | AF54: 00:00:00 | AG54: 00:00:00 | AJ54: 0 | AK54: 0 | AL54: 0 | AM54: 0 | AN54: 0 | AO54: 0 | AP54: 0 | AQ54: 0 | AR54: 0 | AS54: 0 | AT54: 0 | AU54: 0 | AV54: 0 | AW54: 0 | AX54: 0 | AY54: 0 | AZ54: 0 | BA54: 0 | BB54: 0 | BC54: 0 | BD54: 0 | BF54: 0 | BG54: 0 | BH54: 0 | BI54: 0 | BJ54: 0
A55: 05:45 PM | B55: ='Cars & Peds'!B55+'Single Units'!B55+'Heavy Vehicles'!B55 -> 30 | C55: ='Cars & Peds'!C55+'Single Units'!C55+'Heavy Vehicles'!C55 -> 45 | D55: ='Cars & Peds'!D55+'Single Units'!D55+'Heavy Vehicles'!D55 -> 28 | E55: ='Cars & Peds'!E55 -> 0 | F55: 103 | G55: ='Cars & Peds'!F55+'Single Units'!E55+'Heavy Vehicles'!E55 -> 2 | H55: ='Cars & Peds'!G55+'Single Units'!F55+'Heavy Vehicles'!F55 -> 176 | I55: ='Cars & Peds'!H55+'Single Units'!G55+'Heavy Vehicles'!G55 -> 54 | J55: ='Cars & Peds'!I55 -> 0 | K55: 232 | L55: ='Cars & Peds'!J55+'Single Units'!H55+'Heavy Vehicles'!H55 -> 35 | M55: ='Cars & Peds'!K55+'Single Units'!I55+'Heavy Vehicles'!I55 -> 21 | N55: ='Cars & Peds'!L55+'Single Units'!J55+'Heavy Vehicles'!J55 -> 8 | O55: ='Cars & Peds'!M55 -> 0 | P55: 64 | Q55: ='Cars & Peds'!N55+'Single Units'!K55+'Heavy Vehicles'!K55 -> 7 | R55: ='Cars & Peds'!O55+'Single Units'!L55+'Heavy Vehicles'!L55 -> 107 | S55: ='Cars & Peds'!P55+'Single Units'!M55+'Heavy Vehicles'!M55 -> 10 | T55: ='Cars & Peds'!Q55 -> 0 | U55: 124 | V55: 167 | W55: 669 | X55: 356 | Y55: 1509 | Z55: 523 | AA55: =SUM(Z52:Z55) -> 2178 | AC55: =MAX(AA48:AA55) -> 2233 | AF55: 00:00:00 | AG55: 00:00:00 | AJ55: 0 | AK55: 0 | AL55: 0 | AM55: 0 | AN55: 0 | AO55: 0 | AP55: 0 | AQ55: 0 | AR55: 0 | AS55: 0 | AT55: 0 | AU55: 0 | AV55: 0 | AW55: 0 | AX55: 0 | AY55: 0 | AZ55: 0 | BA55: 0 | BB55: 0 | BC55: 0 | BD55: 0 | BF55: 0 | BG55: 0 | BH55: 0 | BI55: 0 | BJ55: 0
E57: All | F57: =SUM(F12:F55) -> 2360 | J57: All | K57: =SUM(K12:K55) -> 5197 | O57: All | P57: =SUM(P12:P55) -> 2164 | T57: All | U57: =SUM(U12:U55) -> 5023
E58: SU | F58: =SUM('Single Units'!B12:D55) -> 67 | J58: SU | K58: =SUM('Single Units'!E12:G55) -> 136 | O58: SU | P58: =SUM('Single Units'!H12:J55) -> 52 | T58: SU | U58: =SUM('Single Units'!K12:M55) -> 181
E59: HV | F59: =SUM('Heavy Vehicles'!B12:D55) -> 16 | J59: HV | K59: =SUM('Heavy Vehicles'!E12:G55) -> 73 | O59: HV | P59: =SUM('Heavy Vehicles'!H12:J55) -> 10 | T59: HV | U59: =SUM('Heavy Vehicles'!K12:M55) -> 62
E60: Truck % | F60: =(F58+F59)/F57 -> 0.03516949153 | J60: Truck % | K60: =(K58+K59)/K57 -> 0.04021550895 | O60: Truck % | P60: =(P58+P59)/P57 -> 0.02865064695 | T60: Truck % | U60: =(U58+U59)/U57 -> 0.04837746367

Sheet Summary
A1: File Name: | C1: ='Cars & Peds'!C1:P1 -> E:\2016 DATA\TURNING MOVEMENTS\TM#202 M-24@ TURRILL LAPEER\TM_160202_353490_10-12-2016.ppd
A2: Start Date: | C2: ='Cars & Peds'!C2:P2 -> 10/12/2016
A3: Start Time: | C3: ='Cars & Peds'!C3:P3 -> 7:00:00 AM
A4: Site Code: | C4: ='Cars & Peds'!C4:P4 -> 160202
A5: Major Road: | C5: ='Cars & Peds'!C5:P5 -> M-24 (LAPEER RD)
A6: Minor Road: | C6: ='Cars & Peds'!C6:P6 -> TURRILL RD
A7: City/Township: | C7: ='Cars & Peds'!C7:P7 -> LAPEER TWP
A8: County: | C8: ='Cars & Peds'!C8:P8 -> LAPEER
C10: ='Cars & Peds'!$B$9 -> M-24/LAPEER RD | J10: ='Cars & Peds'!$F$9 -> TURRILL RD | Q10: ='Cars & Peds'!$J$9 -> M-24/LAPEER RD | X10: ='Cars & Peds'!$N$9 -> TURRILL RD | AE10: INTERSECTION TOTAL COUNTS | AH10: TIME OF DAY
C11: Northbound | J11: Eastbound | Q11: Southbound | X11: Westbound
C12: Heavy Vehicles % = | H12: =Calculations!F60 -> 0.03516949153 | J12: Heavy Vehicles % = | O12: =Calculations!K60 -> 0.04021550895 | Q12: Heavy Vehicles % = | V12: =Calculations!P60 -> 0.02865064695 | X12: Heavy Vehicles % = | AC12: =Calculations!U60 -> 0.04837746367 | AE12: N-S | AF12: E-W | AG12: TOTAL | AH12: PEAK | AI12: FROM | AJ12: TO | AK12: PHF
C13: VEHICLES | F13: PED. | H13: Is Eng. Jdg. Needed? | I13: PHF | J13: VEHICLES | M13: PED. | O13: Is Eng. Jdg. Needed? | P13: PHF | Q13: VEHICLES | T13: PED. | V13: Is Eng. Jdg. Needed? | W13: PHF | X13: VEHICLES | AA13: PED. | AC13: Is Eng. Jdg. Needed? | AD13: PHF
C14: Right | D14: Through | E14: Left | F14: COUNT | G14: CALLS | J14: Right | K14: Through | L14: Left | M14: COUNT | N14: CALLS | Q14: Right | R14: Through | S14: Left | T14: COUNT | U14: CALLS | X14: Right | Y14: Through | Z14: Left | AA14: COUNT | AB14: CALLS
C15: =MAX(Calculations!AJ12:AJ27) -> 64 | D15: =MAX(Calculations!AK12:AK27) -> 80 | E15: =MAX(Calculations!AL12:AL27) -> 106 | F15: =MAX(Calculations!AM12:AM27) -> 0 | G15: =IF(F15<5.1,F15,IF(AND(F15>5,F15<10.1),5,IF(F15>10.1,ROUNDUP(F15/2,0),"E"))) -> 0 | H15: =IF(G15>15.1,"YES", "NO") -> NO | I15: =MAX(Calculations!BG12:BG27) -> 0.8802816901 | J15: =MAX(Calculations!AO12:AO27) -> 12 | K15: =MAX(Calculations!AP12:AP27) -> 283 | L15: =MAX(Calculations!AQ12:AQ27) -> 47 | M15: =MAX(Calculations!AR12:AR27) -> 0 | N15: =IF(M15<5.1,M15,IF(AND(M15>5,M15<10.1),5,IF(M15>10.1,ROUNDUP(M15/2,0),"E"))) -> 0 | O15: =IF(N15>15.1,"YES", "NO") -> NO | P15: =MAX(Calculations!BH12:BH27) -> 0.9193548387 | Q15: =MAX(Calculations!AT12:AT27) -> 224 | R15: =MAX(Calculations!AU12:AU27) -> 212 | S15: =MAX(Calculations!AV12:AV27) -> 43 | T15: =MAX(Calculations!AW12:AW27) -> 0 | U15: =IF(T15<5.1,T15,IF(AND(T15>5,T15<10.1),5,IF(T15>10.1,ROUNDUP(T15/2,0),"E"))) -> 0 | V15: =IF(U15>15.1,"YES", "NO") -> NO | W15: =MAX(Calculations!BI12:BI27) -> 0.8936567164 | X15: =MAX(Calculations!AY12:AY27) -> 5 | Y15: =MAX(Calculations!AZ12:AZ27) -> 785 | Z15: =MAX(Calculations!BA12:BA27) -> 133 | AA15: =MAX(Calculations!BB12:BB27) -> 0 | AB15: =IF(AA15<5.1,AA15,IF(AND(AA15>5,AA15<10.1),5,IF(AA15>10.1,ROUNDUP(AA15/2,0),"E"))) -> 0 | AC15: =IF(AB15>15.1,"YES", "NO") -> NO | AD15: =MAX(Calculations!BJ12:BJ27) -> 0.912055336 | AE15: =C15+D15+E15+Q15+R15+S15 -> 729 | AF15: =J15+K15+L15+X15+Y15+Z15 -> 1265 | AG15: =MAX(Calculations!BD12:BD27) -> 1994 | AH15: AM | AI15: =Calculations!AH12 -> 07:00:00 | AJ15: =Calculations!AI12 -> 08:00:00 | AK15: =MAX(Calculations!BF12:BF27) -> 0.9405660377
C16: =MAX(Calculations!AJ28:AJ47) -> 133 | D16: =MAX(Calculations!AK28:AK47) -> 156 | E16: =MAX(Calculations!AL28:AL47) -> 106 | F16: =MAX(Calculations!AM28:AM47) -> 0 | G16: =IF(F16<5.1,F16,IF(AND(F16>5,F16<10.1),5,IF(F16>10.1,ROUNDUP(F16/2,0),"E"))) -> 0 | H16: =IF(G16>15.1,"YES", "NO") -> NO | I16: =MAX(Calculations!BG28:BG47) -> 0.7155797101 | J16: =MAX(Calculations!AO28:AO47) -> 19 | K16: =MAX(Calculations!AP28:AP47) -> 650 | L16: =MAX(Calculations!AQ28:AQ47) -> 151 | M16: =MAX(Calculations!AR28:AR47) -> 0 | N16: =IF(M16<5.1,M16,IF(AND(M16>5,M16<10.1),5,IF(M16>10.1,ROUNDUP(M16/2,0),"E"))) -> 0 | O16: =IF(N16>15.1,"YES", "NO") -> NO | P16: =MAX(Calculations!BH28:BH47) -> 0.8913043478 | Q16: =MAX(Calculations!AT28:AT47) -> 95 | R16: =MAX(Calculations!AU28:AU47) -> 106 | S16: =MAX(Calculations!AV28:AV47) -> 36 | T16: =MAX(Calculations!AW28:AW47) -> 0 | U16: =IF(T16<5.1,T16,IF(AND(T16>5,T16<10.1),5,IF(T16>10.1,ROUNDUP(T16/2,0),"E"))) -> 0 | V16: =IF(U16>15.1,"YES", "NO") -> NO | W16: =MAX(Calculations!BI28:BI47) -> 0.8345070423 | X16: =MAX(Calculations!AY28:AY47) -> 17 | Y16: =MAX(Calculations!AZ28:AZ47) -> 471 | Z16: =MAX(Calculations!BA28:BA47) -> 80 | AA16: =MAX(Calculations!BB28:BB47) -> 0 | AB16: =IF(AA16<5.1,AA16,IF(AND(AA16>5,AA16<10.1),5,IF(AA16>10.1,ROUNDUP(AA16/2,0),"E"))) -> 0 | AC16: =IF(AB16>15.1,"YES", "NO") -> NO | AD16: =MAX(Calculations!BJ28:BJ47) -> 0.9466666667 | AE16: =C16+D16+E16+Q16+R16+S16 -> 632 | AF16: =J16+K16+L16+X16+Y16+Z16 -> 1388 | AG16: =MAX(Calculations!BD28:BD47) -> 2020 | AH16: MD | AI16: =Calculations!AH28 -> 15:00:00 | AJ16: =Calculations!AI28 -> 16:00:00 | AK16: =MAX(Calculations!BF28:BF47) -> 0.9369202226
C17: =MAX(Calculations!AJ48:AJ55) -> 109 | D17: =MAX(Calculations!AK48:AK55) -> 197 | E17: =MAX(Calculations!AL48:AL55) -> 107 | F17: =MAX(Calculations!AM48:AM55) -> 0 | G17: =IF(F17<5.1,F17,IF(AND(F17>5,F17<10.1),5,IF(F17>10.1,ROUNDUP(F17/2,0),"E"))) -> 0 | H17: =IF(G17>15.1,"YES", "NO") -> NO | I17: =MAX(Calculations!BG48:BG55) -> 0.8900862069 | J17: =MAX(Calculations!AO48:AO55) -> 30 | K17: =MAX(Calculations!AP48:AP55) -> 742 | L17: =MAX(Calculations!AQ48:AQ55) -> 223 | M17: =MAX(Calculations!AR48:AR55) -> 0 | N17: =IF(M17<5.1,M17,IF(AND(M17>5,M17<10.1),5,IF(M17>10.1,ROUNDUP(M17/2,0),"E"))) -> 0 | O17: =IF(N17>15.1,"YES", "NO") -> NO | P17: =MAX(Calculations!BH48:BH55) -> 0.9678988327 | Q17: =MAX(Calculations!AT48:AT55) -> 90 | R17: =MAX(Calculations!AU48:AU55) -> 100 | S17: =MAX(Calculations!AV48:AV55) -> 37 | T17: =MAX(Calculations!AW48:AW55) -> 0 | U17: =IF(T17<5.1,T17,IF(AND(T17>5,T17<10.1),5,IF(T17>10.1,ROUNDUP(T17/2,0),"E"))) -> 0 | V17: =IF(U17>15.1,"YES", "NO") -> NO | W17: =MAX(Calculations!BI48:BI55) -> 0.8470149254 | X17: =MAX(Calculations!AY48:AY55) -> 14 | Y17: =MAX(Calculations!AZ48:AZ55) -> 506 | Z17: =MAX(Calculations!BA48:BA55) -> 78 | AA17: =MAX(Calculations!BB48:BB55) -> 0 | AB17: =IF(AA17<5.1,AA17,IF(AND(AA17>5,AA17<10.1),5,IF(AA17>10.1,ROUNDUP(AA17/2,0),"E"))) -> 0 | AC17: =IF(AB17>15.1,"YES", "NO") -> NO | AD17: =MAX(Calculations!BJ48:BJ55) -> 0.9115853659 | AE17: =C17+D17+E17+Q17+R17+S17 -> 640 | AF17: =J17+K17+L17+X17+Y17+Z17 -> 1593 | AG17: =MAX(Calculations!BD48:BD55) -> 2233 | AH17: PM | AI17: =Calculations!AH48 -> 16:30:00 | AJ17: =Calculations!AI48 -> 17:30:00 | AK17: =MAX(Calculations!BF48:BF55) -> 0.9811072056
